Workbook

Sheet Linear
B1: Building Linear Approximations
B2: to the Sine Function
B4: This graphing utility lets you try to
B5: build the best linear approximation
C6: to the sine function
D7: y = sin x
C8: centered about x = 0
A11: Enter the interval for x:
C12: xMin = | D12: -1
C13: xMax = | D13: 2
A16: In the linear approximation sin x » a0 + b0x
A18: What is the constant coefficient a0 (-1 to 1)?
C19: 104 | F19: =(C19-0)/100-1 -> 0.04 | I19: The largest deviation at 200 evenly spaced points is | O19: =MAX(Calcs!H3:H203) -> 1.130702573
A21: What is the linear coefficient b0 (0 to 2)? | I21: The sum of the squares of the 200 deviations is | O21: =Calcs!I205 -> 28.9597932
C22: 100 | F22: =(C22-0)/100 -> 1
A24: Your linear polynomial is y = | E24: =TEXT(aa00,"0.00")&" + " &TEXT(bb00,"0.00")&"x " -> 0.04 + 1.00x
A29: Click each item below for suggestions and investigations
C30: Item 1
C31: Item 2
C32: Item 3
C33: Item 4

Sheet Quad
B1: Building Quadratic Approximations
B2: to the Sine Function
B4: This graphing utility lets you try to
B5: build the best quadratic approximation
C6: to the sine function
D7: y = sin x
C8: centered about x = 0
A11: Enter the interval for x:
C12: xMin = | D12: -1
C13: xMax = | D13: 2
A16: In the quadratic approximation sin x » a0 + b0x + c0x2
A18: What is the constant coefficient a0 (0 to 2)?
C19: 100 | F19: 0 | I19: The largest deviation at 200 evenly spaced points is | O19: =MAX(Calcs!O3:O203) -> 3.130702573
A21: What is the linear coefficient b0 (0 to 2)? | I21: The sum of the squares of the 200 deviations is | O21: =Calcs!P205 -> 250.4467677
C22: 106 | F22: =(C22-0)/100 -> 1.06
A24: What is the quadratic coefficient c0 (0 to 2)?
C25: 48 | F25: =(C25-0)/100 -> 0.48
A27: Your quadratic polynomial is y = | E27: =TEXT(a0,"0.00")&" +" &TEXT(b0,"0.00")&"x + "&TEXT(c0,"0.00")&"x^2" -> 0.00 +1.06x + 0.48x^2
A32: Click each item below for suggestions and investigations
D33: Item 1
D34: Item 2
D35: Item 3
D36: Item 4
D37: Item 5

Sheet Cubic
B1: Building Cubic Approximations
B2: to the Sine Function
B4: This graphing utility lets you try to
B5: build the best cubic approximation
C6: to the sine function
D7: y = sin x
C8: centered about x = 0
A11: Enter the interval for x:
C12: xMin = | D12: -1
C13: xMax = | D13: 2
A16: In the cubic approximation sin x » a0 + b0x + c0x2 + d0x3
A18: What is the constant coefficient a0 (0 to 2)?
C19: 92 | F19: 0.00 | I19: The largest deviation at 200 evenly spaced points is | O19: =MAX(Calcs!V3:V203) -> 5.770702573
A21: What is the linear coefficient b0 (0 to 2)? | I21: The sum of the squares of the 200 deviations is | O21: =Calcs!W205 -> 707.1736368
C22: 82 | F22: =(C22-0)/100 -> 0.82
A24: What is the quadratic coefficient c0 (0 to 2)?
C25: 50 | F25: =(C25-0)/100 -> 0.50
A27: What is the cubic coefficient d0 (-1 to 1)?
C28: 138 | F28: =(C28-0)/100-1 -> 0.38
A30: Your cubic polynomial is y = | E30: =TEXT(a00,"0.00")&" + "&TEXT(b00,"0.00")&"x + "&TEXT(c00,"0.00")&"x^2 + "&TEXT(d00,"0.00")&"x^3" -> 0.00 + 0.82x + 0.50x^2 + 0.38x^3
A35: Click each item below for suggestions and investigations
D36: Item 1
D37: Item 2
D38: Item 3
D39: Item 4
D40: Item 5

Sheet Quartic
B1: Building Quartic Approximations
B2: to the Sine Function
B4: This graphing utility lets you try to
B5: build the best quartic approximation
C6: to the sine function
D7: y = sin x
C8: centered about x = 0
A11: Enter the interval for x:
C12: xMin = | D12: -1
C13: xMax = | D13: 2
A16: In the quartic approximation sin x » a0 + b0x + c0x2 + d0x3 + e0x4
A18: What is the constant coefficient a0 (0 to 2)?
C19: 92 | F19: 0.00 | I19: The largest deviation at 200 evenly spaced points is | O19: =MAX(Calcs!V3:V203) -> 5.770702573
A21: What is the linear coefficient b0 (0 to 2)? | I21: The sum of the squares of the 200 deviations is | O21: =Calcs!W205 -> 707.1736368
C22: 82 | F22: =(C22-0)/100 -> 0.82
A24: What is the quadratic coefficient c0 (0 to 2)?
C25: 50 | F25: =(C25-0)/100 -> 0.50
A27: What is the cubic coefficient d0 (-1 to 1)?
C28: 41 | F28: =(C28-0)/100-1 -> -0.59
A30: What is the quartic coefficient e0 (-1 to 1)?
C31: 41 | F31: =(C31-0)/100-1 -> -0.59
A33: Your quartic polynomial is y = | E33: =TEXT(a000,"0.00")&" + "&TEXT(b000,"0.00")&"x + "&TEXT(c000,"0.00")&"x^2 + "&TEXT(d000,"0.00")&"x^3 +"&TEXT(e000,"0.00")&"x^4" -> 0.00 + 0.82x + 0.50x^2 + -0.59x^3 +-0.59x^4
A38: Click each item below for suggestions and investigations
C39: Item 1
C40: Item 2
C41: Item 3
C42: Item 4
C43: Item 5

Sheet Quintic
B1: Building Quintic Approximations
B2: to the Sine Function
B4: This graphing utility lets you try to
B5: build the best quintic approximation
B6: to the sine function
D7: y = sin x
C8: centered about x = 0
A11: Enter the interval for x:
C12: xMin = | D12: -1
C13: xMax = | D13: 2
A16: In the quartic approximation sin x » a0 + b0x + c0x2 + d0x3 + e0x4 + f0x5
A18: What is the constant coefficient a0 (0 to 2)?
C19: 100 | F19: 0.00 | I19: The largest deviation at 200 evenly spaced points is | O19: =MAX(Calcs!AI3:AI203) -> 0.2605636645
A21: What is the linear coefficient b0 (0 to 2)? | I21: The sum of the squares of the 200 deviations is | O21: =Calcs!AK205 -> 5059.285049
C22: 100 | F22: =(C22-0)/100 -> 1.00
A24: What is the quadratic coefficient c0 (0 to 2)?
C25: 50 | F25: =(C25-0)/100 -> 0.50
A27: What is the cubic coefficient d0 (-1 to 1)?
C28: 34 | F28: =(C28-0)/200-1 -> -0.83
A30: What is the quartic coefficient e0 (-1 to 1)?
C31: 8 | F31: =(C31-0)/200-1 -> -0.96
A33: What is the quintic coefficient f0 (-0.2 to 0.2)?
C34: 57 | F34: =(C34-0)/250-0.2 -> 0.028
A36: Your quintic polynomial is y = | E36: =TEXT(a0000,"0.00")&" + "&TEXT(b0000,"0.00")&"x + "&TEXT(c0000,"0.00")&"x^2 + "&TEXT(d0000,"0.00")&"x^3 + "&TEXT(e0000,"0.00")&"x^4 + "&TEXT(f0000,"0.00")&"x^5 " -> 0.00 + 1.00x + 0.50x^2 + -0.83x^3 + -0.96x^4 + 0.03x^5
A41: Click each item below for suggestions and investigations
C42: Item 1
C43: Item 2
C44: Item 3
C45: Item 4
C46: Item 5
C47: Item 6

Sheet Calcs
E1: Linear | L1: Quadatic | S1: Cubic | Z1: Quartic | AG1: Quintic
A2: Exponential | D2: x | E2: sin x | F2: P1(x) | G2: Difference | H2: ABS | I2: Squares | K2: x | L2: sin x | M2: P2(x) | N2: Difference | O2: ABS | P2: Squares | R2: x | S2: sin x | T2: P3(x) | U2: Difference | V2: ABS | W2: Squares | Y2: x | Z2: sin x | AA2: P4(x) | AB2: Difference | AC2: ABS | AD2: Squares | AF2: x | AG2: sin x | AH2: P5(x) | AI2: Difference | AJ2: ABS | AK2: Squares
A3: y = e^x | D3: =a -> -1 | E3: =SIN(D3) -> -0.84147 | F3: =aa00+bb00*D3 -> -0.96000 | G3: =F3-E3 -> -0.11853 | H3: =ABS(G3) -> 0.11853 | I3: =G3^2 -> 0.0140 | K3: =a -> -1 | L3: =SIN(K3) -> -0.84147 | M3: =a0+b0*D3+c0*D3^2 -> -0.58000 | N3: =M3-L3 -> 0.26147 | O3: =ABS(N3) -> 0.26147 | P3: =N3^2 -> 0.0684 | R3: =aa -> -1 | S3: =SIN(R3) -> -0.84147 | T3: =a00+b00*R3+c00*R3^2+d00*D3^3 -> -0.70000 | U3: =T3-S3 -> 0.14147 | V3: =ABS(U3) -> 0.14147 | W3: =U3^2 -> 0.0200 | Y3: =aaa -> -1 | Z3: =SIN(Y3) -> -0.84147 | AA3: =a000+b000*Y3+c000*Y3^2+d000*R3^3+e000*R3^4 -> -0.32000 | AB3: =AA3-Z3 -> 0.52147 | AC3: =ABS(AB3) -> 0.52147 | AD3: =AB3^2 -> 0.2719 | AF3: =aaaa -> -1 | AG3: =SIN(AF3) -> -0.84147 | AH3: =a0000+b0000*AF3+c0000*AF3^2+d0000*AF3^3+e0000*AF3^4+f0000*AF3^5 -> -0.65800 | AI3: =AH3-AG3 -> 0.18347 | AJ3: =ABS(AI3) -> 0.18347 | AK3: =AI3^2 -> 0.0337
A4: =Quad!D12 -> -1 | B4: =EXP(A4) -> 0.3678794412 | D4: =D3+(b-a)/200 -> -0.985 | E4: =SIN(D4) -> -0.83327 | F4: -0.94500 | G4: =F4-E4 -> -0.11173 | H4: =ABS(G4) -> 0.11173 | I4: =G4^2 -> 0.0125 | K4: =K3+(b-a)/200 -> -0.985 | L4: =SIN(K4) -> -0.83327 | M4: -0.57839 | N4: =M4-L4 -> 0.25488 | O4: =ABS(N4) -> 0.25488 | P4: =N4^2 -> 0.0650 | R4: =R3+(bb-aa)/200 -> -0.985 | S4: =SIN(R4) -> -0.83327 | T4: -0.68574 | U4: =T4-S4 -> 0.14753 | V4: =ABS(U4) -> 0.14753 | W4: =U4^2 -> 0.0218 | Y4: =Y3+(bbb-aaa)/200 -> -0.985 | Z4: =SIN(Y4) -> -0.83327 | AA4: -0.31413 | AB4: =AA4-Z4 -> 0.51914 | AC4: =ABS(AB4) -> 0.51914 | AD4: =AB4^2 -> 0.2695 | AF4: =AF3+(bbbb-aaaa)/200 -> -0.985 | AG4: =SIN(AF4) -> -0.83327 | AH4: -0.63633 | AI4: =AH4-AG4 -> 0.19695 | AJ4: =ABS(AI4) -> 0.19695 | AK4: =AI4^2 -> 0.0388
A5: =b -> 2 | B5: =EXP(A5) -> 7.389056099 | D5: -0.97 | E5: -0.82489 | F5: -0.93000 | G5: -0.10511 | H5: 0.10511 | I5: 0.0110 | K5: -0.97 | L5: -0.82489 | M5: -0.57657 | N5: 0.24832 | O5: 0.24832 | P5: 0.0617 | R5: -0.97 | S5: -0.82489 | T5: -0.67177 | U5: 0.15312 | V5: 0.15312 | W5: 0.0234 | Y5: -0.97 | Z5: -0.82489 | AA5: -0.30880 | AB5: 0.51609 | AC5: 0.51609 | AD5: 0.2663 | AF5: -0.97 | AG5: -0.82489 | AH5: -0.61596 | AI5: 0.20893 | AJ5: 0.20893 | AK5: 0.0437
D6: -0.955 | E6: -0.81631 | F6: -0.91500 | G6: -0.09869 | H6: 0.09869 | I6: 0.0097 | K6: -0.955 | L6: -0.81631 | M6: -0.57453 | N6: 0.24179 | O6: 0.24179 | P6: 0.0585 | R6: -0.955 | S6: -0.81631 | T6: -0.65806 | U6: 0.15825 | V6: 0.15825 | W6: 0.0250 | Y6: -0.955 | Z6: -0.81631 | AA6: -0.30396 | AB6: 0.51235 | AC6: 0.51235 | AD6: 0.2625 | AF6: -0.955 | AG6: -0.81631 | AH6: -0.59683 | AI6: 0.21948 | AJ6: 0.21948 | AK6: 0.0482
A7: Linear | D7: -0.94 | E7: -0.80756 | F7: -0.90000 | G7: -0.09244 | H7: 0.09244 | I7: 0.0085 | K7: -0.94 | L7: -0.80756 | M7: -0.57227 | N7: 0.23529 | O7: 0.23529 | P7: 0.0554 | R7: -0.94 | S7: -0.80756 | T7: -0.64462 | U7: 0.16294 | V7: 0.16294 | W7: 0.0265 | Y7: -0.94 | Z7: -0.80756 | AA7: -0.29960 | AB7: 0.50796 | AC7: 0.50796 | AD7: 0.2580 | AF7: -0.94 | AG7: -0.80756 | AH7: -0.57888 | AI7: 0.22867 | AJ7: 0.22867 | AK7: 0.0523
A8: =a -> -1 | B8: =1+a -> 0 | D8: -0.925 | E8: -0.79862 | F8: -0.88500 | G8: -0.08638 | H8: 0.08638 | I8: 0.0075 | K8: -0.925 | L8: -0.79862 | M8: -0.56980 | N8: 0.22882 | O8: 0.22882 | P8: 0.0524 | R8: -0.925 | S8: -0.79862 | T8: -0.63144 | U8: 0.16718 | V8: 0.16718 | W8: 0.0279 | Y8: -0.925 | Z8: -0.79862 | AA8: -0.29567 | AB8: 0.50296 | AC8: 0.50296 | AD8: 0.2530 | AF8: -0.925 | AG8: -0.79862 | AH8: -0.56205 | AI8: 0.23657 | AJ8: 0.23657 | AK8: 0.0560
A9: =IF(Quad!J21=FALSE, a, b) -> -1 | B9: =1+A9 -> 0 | D9: -0.91 | E9: -0.78950 | F9: -0.87000 | G9: -0.08050 | H9: 0.08050 | I9: 0.0065 | K9: -0.91 | L9: -0.78950 | M9: -0.56711 | N9: 0.22239 | O9: 0.22239 | P9: 0.0495 | R9: -0.91 | S9: -0.78950 | T9: -0.61851 | U9: 0.17100 | V9: 0.17100 | W9: 0.0292 | Y9: -0.91 | Z9: -0.78950 | AA9: -0.29214 | AB9: 0.49737 | AC9: 0.49737 | AD9: 0.2474 | AF9: -0.91 | AG9: -0.78950 | AH9: -0.54628 | AI9: 0.24323 | AJ9: 0.24323 | AK9: 0.0592
D10: -0.895 | E10: -0.78021 | F10: -0.85500 | G10: -0.07479 | H10: 0.07479 | I10: 0.0056 | K10: -0.895 | L10: -0.78021 | M10: -0.56421 | N10: 0.21600 | O10: 0.21600 | P10: 0.0467 | R10: -0.895 | S10: -0.78021 | T10: -0.60582 | U10: 0.17439 | V10: 0.17439 | W10: 0.0304 | Y10: -0.895 | Z10: -0.78021 | AA10: -0.28897 | AB10: 0.49123 | AC10: 0.49123 | AD10: 0.2413 | AF10: -0.895 | AG10: -0.78021 | AH10: -0.53150 | AI10: 0.24871 | AJ10: 0.24871 | AK10: 0.0619
A11: Quadratic | D11: -0.88 | E11: -0.77074 | F11: -0.84000 | G11: -0.06926 | H11: 0.06926 | I11: 0.0048 | K11: -0.88 | L11: -0.77074 | M11: -0.56109 | N11: 0.20965 | O11: 0.20965 | P11: 0.0440 | R11: -0.88 | S11: -0.77074 | T11: -0.59336 | U11: 0.17738 | V11: 0.17738 | W11: 0.0315 | Y11: -0.88 | Z11: -0.77074 | AA11: -0.28615 | AB11: 0.48459 | AC11: 0.48459 | AD11: 0.2348 | AF11: -0.88 | AG11: -0.77074 | AH11: -0.51766 | AI11: 0.25308 | AJ11: 0.25308 | AK11: 0.0640
A12: =a -> -1 | B12: =1+A12+A12^2/2 -> 0.5 | D12: -0.865 | E12: -0.76110 | F12: -0.82500 | G12: -0.06390 | H12: 0.06390 | I12: 0.0041 | K12: -0.865 | L12: -0.76110 | M12: -0.55775 | N12: 0.20334 | O12: 0.20334 | P12: 0.0413 | R12: -0.865 | S12: -0.76110 | T12: -0.58113 | U12: 0.17997 | V12: 0.17997 | W12: 0.0324 | Y12: -0.865 | Z12: -0.76110 | AA12: -0.28364 | AB12: 0.47746 | AC12: 0.47746 | AD12: 0.2280 | AF12: -0.865 | AG12: -0.76110 | AH12: -0.50471 | AI12: 0.25639 | AJ12: 0.25639 | AK12: 0.0657
A13: =IF(Quad!J$24=FALSE,a,(a+b)/2) -> -1 | B13: =1+A13+A13^2/2 -> 0.5 | D13: -0.85 | E13: -0.75128 | F13: -0.81000 | G13: -0.05872 | H13: 0.05872 | I13: 0.0034 | K13: -0.85 | L13: -0.75128 | M13: -0.55420 | N13: 0.19708 | O13: 0.19708 | P13: 0.0388 | R13: -0.85 | S13: -0.75128 | T13: -0.56912 | U13: 0.18216 | V13: 0.18216 | W13: 0.0332 | Y13: -0.85 | Z13: -0.75128 | AA13: -0.28140 | AB13: 0.46988 | AC13: 0.46988 | AD13: 0.2208 | AF13: -0.85 | AG13: -0.75128 | AH13: -0.49258 | AI13: 0.25870 | AJ13: 0.25870 | AK13: 0.0669
A14: =IF(Quad!J$24=FALSE,a,b) -> -1 | B14: =1+A14+A14^2/2 -> 0.5 | D14: -0.835 | E14: -0.74130 | F14: -0.79500 | G14: -0.05370 | H14: 0.05370 | I14: 0.0029 | K14: -0.835 | L14: -0.74130 | M14: -0.55043 | N14: 0.19086 | O14: 0.19086 | P14: 0.0364 | R14: -0.835 | S14: -0.74130 | T14: -0.55732 | U14: 0.18398 | V14: 0.18398 | W14: 0.0338 | Y14: -0.835 | Z14: -0.74130 | AA14: -0.27941 | AB14: 0.46188 | AC14: 0.46188 | AD14: 0.2133 | AF14: -0.835 | AG14: -0.74130 | AH14: -0.48122 | AI14: 0.26008 | AJ14: 0.26008 | AK14: 0.0676
D15: -0.82 | E15: -0.73115 | F15: -0.78000 | G15: -0.04885 | H15: 0.04885 | I15: 0.0024 | K15: -0.82 | L15: -0.73115 | M15: -0.54645 | N15: 0.18470 | O15: 0.18470 | P15: 0.0341 | R15: -0.82 | S15: -0.73115 | T15: -0.54572 | U15: 0.18543 | V15: 0.18543 | W15: 0.0344 | Y15: -0.82 | Z15: -0.73115 | AA15: -0.27764 | AB15: 0.45350 | AC15: 0.45350 | AD15: 0.2057 | AF15: -0.82 | AG15: -0.73115 | AH15: -0.47058 | AI15: 0.26056 | AJ15: 0.26056 | AK15: 0.0679
A16: Cubic | D16: -0.805 | E16: -0.72083 | F16: -0.76500 | G16: -0.04417 | H16: 0.04417 | I16: 0.0020 | K16: -0.805 | L16: -0.72083 | M16: -0.54225 | N16: 0.17858 | O16: 0.17858 | P16: 0.0319 | R16: -0.805 | S16: -0.72083 | T16: -0.53432 | U16: 0.18651 | V16: 0.18651 | W16: 0.0348 | Y16: -0.805 | Z16: -0.72083 | AA16: -0.27607 | AB16: 0.44476 | AC16: 0.44476 | AD16: 0.1978 | AF16: -0.805 | AG16: -0.72083 | AH16: -0.46061 | AI16: 0.26022 | AJ16: 0.26022 | AK16: 0.0677
A17: =a -> -1 | B17: =1+A17+A17^2/2+A17^3/6 -> 0.3333333333 | D17: -0.79 | E17: -0.71035 | F17: -0.75000 | G17: -0.03965 | H17: 0.03965 | I17: 0.0016 | K17: -0.79 | L17: -0.71035 | M17: -0.53783 | N17: 0.17252 | O17: 0.17252 | P17: 0.0298 | R17: -0.79 | S17: -0.71035 | T17: -0.52310 | U17: 0.18725 | V17: 0.18725 | W17: 0.0351 | Y17: -0.79 | Z17: -0.71035 | AA17: -0.27466 | AB17: 0.43569 | AC17: 0.43569 | AD17: 0.1898 | AF17: -0.79 | AG17: -0.71035 | AH17: -0.45126 | AI17: 0.25909 | AJ17: 0.25909 | AK17: 0.0671
A18: =IF(Quad!J26=FALSE,a,a+(b-a)/3) -> -1 | B18: =1+A18+A18^2/2+A18^3/6 -> 0.3333333333 | D18: -0.775 | E18: -0.69972 | F18: -0.73500 | G18: -0.03528 | H18: 0.03528 | I18: 0.0012 | K18: -0.775 | L18: -0.69972 | M18: -0.53320 | N18: 0.16652 | O18: 0.16652 | P18: 0.0277 | R18: -0.775 | S18: -0.69972 | T18: -0.51207 | U18: 0.18764 | V18: 0.18764 | W18: 0.0352 | Y18: -0.775 | Z18: -0.69972 | AA18: -0.27339 | AB18: 0.42632 | AC18: 0.42632 | AD18: 0.1818 | AF18: -0.775 | AG18: -0.69972 | AH18: -0.44248 | AI18: 0.25723 | AJ18: 0.25723 | AK18: 0.0662
A19: =IF(Quad!J26=FALSE,a,a+(b-a)*2/3) -> -1 | B19: =1+A19+A19^2/2+A19^3/6 -> 0.3333333333 | D19: -0.76 | E19: -0.68892 | F19: -0.72000 | G19: -0.03108 | H19: 0.03108 | I19: 0.0010 | K19: -0.76 | L19: -0.68892 | M19: -0.52835 | N19: 0.16057 | O19: 0.16057 | P19: 0.0258 | R19: -0.76 | S19: -0.68892 | T19: -0.50121 | U19: 0.18771 | V19: 0.18771 | W19: 0.0352 | Y19: -0.76 | Z19: -0.68892 | AA19: -0.27224 | AB19: 0.41668 | AC19: 0.41668 | AD19: 0.1736 | AF19: -0.76 | AG19: -0.68892 | AH19: -0.43423 | AI19: 0.25470 | AJ19: 0.25470 | AK19: 0.0649
A20: =IF(Quad!J26=FALSE,a,b) -> -1 | B20: =1+A20+A20^2/2+A20^3/6 -> 0.3333333333 | D20: -0.745 | E20: -0.67797 | F20: -0.70500 | G20: -0.02703 | H20: 0.02703 | I20: 0.0007 | K20: -0.745 | L20: -0.67797 | M20: -0.52329 | N20: 0.15468 | O20: 0.15468 | P20: 0.0239 | R20: -0.745 | S20: -0.67797 | T20: -0.49052 | U20: 0.18746 | V20: 0.18746 | W20: 0.0351 | Y20: -0.745 | Z20: -0.67797 | AA20: -0.27118 | AB20: 0.40679 | AC20: 0.40679 | AD20: 0.1655 | AF20: -0.745 | AG20: -0.67797 | AH20: -0.42644 | AI20: 0.25153 | AJ20: 0.25153 | AK20: 0.0633
D21: -0.73 | E21: -0.66687 | F21: -0.69000 | G21: -0.02313 | H21: 0.02313 | I21: 0.0005 | K21: -0.73 | L21: -0.66687 | M21: -0.51801 | N21: 0.14886 | O21: 0.14886 | P21: 0.0222 | R21: -0.73 | S21: -0.66687 | T21: -0.47998 | U21: 0.18689 | V21: 0.18689 | W21: 0.0349 | Y21: -0.73 | Z21: -0.66687 | AA21: -0.27018 | AB21: 0.39669 | AC21: 0.39669 | AD21: 0.1574 | AF21: -0.73 | AG21: -0.66687 | AH21: -0.41909 | AI21: 0.24778 | AJ21: 0.24778 | AK21: 0.0614
A22: Quartic | D22: -0.715 | E22: -0.65562 | F22: -0.67500 | G22: -0.01938 | H22: 0.01938 | I22: 0.0004 | K22: -0.715 | L22: -0.65562 | M22: -0.51251 | N22: 0.14311 | O22: 0.14311 | P22: 0.0205 | R22: -0.715 | S22: -0.65562 | T22: -0.46959 | U22: 0.18603 | V22: 0.18603 | W22: 0.0346 | Y22: -0.715 | Z22: -0.65562 | AA22: -0.26922 | AB22: 0.38639 | AC22: 0.38639 | AD22: 0.1493 | AF22: -0.715 | AG22: -0.65562 | AH22: -0.41213 | AI22: 0.24349 | AJ22: 0.24349 | AK22: 0.0593
A23: =a -> -1 | B23: =1+A23+A23^2/2+A23^3/6+A23^4/24 -> 0.375 | D23: -0.7 | E23: -0.64422 | F23: -0.66000 | G23: -0.01578 | H23: 0.01578 | I23: 0.0002 | K23: -0.7 | L23: -0.64422 | M23: -0.50680 | N23: 0.13742 | O23: 0.13742 | P23: 0.0189 | R23: -0.7 | S23: -0.64422 | T23: -0.45934 | U23: 0.18488 | V23: 0.18488 | W23: 0.0342 | Y23: -0.7 | Z23: -0.64422 | AA23: -0.26829 | AB23: 0.37593 | AC23: 0.37593 | AD23: 0.1413 | AF23: -0.7 | AG23: -0.64422 | AH23: -0.40551 | AI23: 0.23871 | AJ23: 0.23871 | AK23: 0.0570
A24: =IF(Quad!J28=FALSE,a,a+(b-a)/4) -> -1 | B24: =1+A24+A24^2/2+A24^3/6+A24^4/24 -> 0.375 | D24: -0.685 | E24: -0.63267 | F24: -0.64500 | G24: -0.01233 | H24: 0.01233 | I24: 0.0002 | K24: -0.685 | L24: -0.63267 | M24: -0.50087 | N24: 0.13180 | O24: 0.13180 | P24: 0.0174 | R24: -0.685 | S24: -0.63267 | T24: -0.44923 | U24: 0.18345 | V24: 0.18345 | W24: 0.0337 | Y24: -0.685 | Z24: -0.63267 | AA24: -0.26735 | AB24: 0.36532 | AC24: 0.36532 | AD24: 0.1335 | AF24: -0.685 | AG24: -0.63267 | AH24: -0.39920 | AI24: 0.23348 | AJ24: 0.23348 | AK24: 0.0545
A25: =IF(Quad!J28=FALSE,a,a+(b-a)/2) -> -1 | B25: =1+A25+A25^2/2+A25^3/6+A25^4/24 -> 0.375 | D25: -0.67 | E25: -0.62099 | F25: -0.63000 | G25: -0.00901 | H25: 0.00901 | I25: 0.0001 | K25: -0.67 | L25: -0.62099 | M25: -0.49473 | N25: 0.12626 | O25: 0.12626 | P25: 0.0159 | R25: -0.67 | S25: -0.62099 | T25: -0.43924 | U25: 0.18175 | V25: 0.18175 | W25: 0.0330 | Y25: -0.67 | Z25: -0.62099 | AA25: -0.26639 | AB25: 0.35459 | AC25: 0.35459 | AD25: 0.1257 | AF25: -0.67 | AG25: -0.62099 | AH25: -0.39315 | AI25: 0.22784 | AJ25: 0.22784 | AK25: 0.0519
A26: =IF(Quad!J28=FALSE,a,a+(b-a)*3/4) -> -1 | B26: =1+A26+A26^2/2+A26^3/6+A26^4/24 -> 0.375 | D26: -0.655 | E26: -0.60916 | F26: -0.61500 | G26: -0.00584 | H26: 0.00584 | I26: 0.0000 | K26: -0.655 | L26: -0.60916 | M26: -0.48837 | N26: 0.12079 | O26: 0.12079 | P26: 0.0146 | R26: -0.655 | S26: -0.60916 | T26: -0.42937 | U26: 0.17979 | V26: 0.17979 | W26: 0.0323 | Y26: -0.655 | Z26: -0.60916 | AA26: -0.26539 | AB26: 0.34377 | AC26: 0.34377 | AD26: 0.1182 | AF26: -0.655 | AG26: -0.60916 | AH26: -0.38732 | AI26: 0.22184 | AJ26: 0.22184 | AK26: 0.0492
A27: =IF(Quad!J28=FALSE,a,b) -> -1 | B27: =1+A27+A27^2/2+A27^3/6+A27^4/24 -> 0.375 | D27: -0.64 | E27: -0.59720 | F27: -0.60000 | G27: -0.00280 | H27: 0.00280 | I27: 0.0000 | K27: -0.64 | L27: -0.59720 | M27: -0.48179 | N27: 0.11540 | O27: 0.11540 | P27: 0.0133 | R27: -0.64 | S27: -0.59720 | T27: -0.41961 | U27: 0.17758 | V27: 0.17758 | W27: 0.0315 | Y27: -0.64 | Z27: -0.59720 | AA27: -0.26432 | AB27: 0.33287 | AC27: 0.33287 | AD27: 0.1108 | AF27: -0.64 | AG27: -0.59720 | AH27: -0.38169 | AI27: 0.21551 | AJ27: 0.21551 | AK27: 0.0464
D28: -0.625 | E28: -0.58510 | F28: -0.58500 | G28: 0.00010 | H28: 0.00010 | I28: 0.0000 | K28: -0.625 | L28: -0.58510 | M28: -0.47500 | N28: 0.11010 | O28: 0.11010 | P28: 0.0121 | R28: -0.625 | S28: -0.58510 | T28: -0.40996 | U28: 0.17514 | V28: 0.17514 | W28: 0.0307 | Y28: -0.625 | Z28: -0.58510 | AA28: -0.26317 | AB28: 0.32193 | AC28: 0.32193 | AD28: 0.1036 | AF28: -0.625 | AG28: -0.58510 | AH28: -0.37621 | AI28: 0.20889 | AJ28: 0.20889 | AK28: 0.0436
A29: Quintic | D29: -0.61 | E29: -0.57287 | F29: -0.57000 | G29: 0.00287 | H29: 0.00287 | I29: 0.0000 | K29: -0.61 | L29: -0.57287 | M29: -0.46799 | N29: 0.10488 | O29: 0.10488 | P29: 0.0110 | R29: -0.61 | S29: -0.57287 | T29: -0.40040 | U29: 0.17246 | V29: 0.17246 | W29: 0.0297 | Y29: -0.61 | Z29: -0.57287 | AA29: -0.26192 | AB29: 0.31095 | AC29: 0.31095 | AD29: 0.0967 | AF29: -0.61 | AG29: -0.57287 | AH29: -0.37084 | AI29: 0.20203 | AJ29: 0.20203 | AK29: 0.0408
A30: =a -> -1 | B30: =1+A30+A30^2/2+A30^3/6+A30^4/24+A30^5/120 -> 0.3666666667 | D30: -0.595 | E30: -0.56051 | F30: -0.55500 | G30: 0.00551 | H30: 0.00551 | I30: 0.0000 | K30: -0.595 | L30: -0.56051 | M30: -0.46077 | N30: 0.09974 | O30: 0.09974 | P30: 0.0099 | R30: -0.595 | S30: -0.56051 | T30: -0.39093 | U30: 0.16958 | V30: 0.16958 | W30: 0.0288 | Y30: -0.595 | Z30: -0.56051 | AA30: -0.26055 | AB30: 0.29995 | AC30: 0.29995 | AD30: 0.0900 | AF30: -0.595 | AG30: -0.56051 | AH30: -0.36556 | AI30: 0.19495 | AJ30: 0.19495 | AK30: 0.0380
A31: =IF(Quad!J31=FALSE,a,a+(b-a)/5) -> -1 | B31: 0.3666666667 | D31: -0.58 | E31: -0.54802 | F31: -0.54000 | G31: 0.00802 | H31: 0.00802 | I31: 0.0001 | K31: -0.58 | L31: -0.54802 | M31: -0.45333 | N31: 0.09470 | O31: 0.09470 | P31: 0.0090 | R31: -0.58 | S31: -0.54802 | T31: -0.38154 | U31: 0.16648 | V31: 0.16648 | W31: 0.0277 | Y31: -0.58 | Z31: -0.54802 | AA31: -0.25905 | AB31: 0.28897 | AC31: 0.28897 | AD31: 0.0835 | AF31: -0.58 | AG31: -0.54802 | AH31: -0.36033 | AI31: 0.18769 | AJ31: 0.18769 | AK31: 0.0352
A32: =IF(Quad!J31=FALSE,a,a+(b-a)/5*2) -> -1 | B32: 0.3666666667 | D32: -0.565 | E32: -0.53542 | F32: -0.52500 | G32: 0.01042 | H32: 0.01042 | I32: 0.0001 | K32: -0.565 | L32: -0.53542 | M32: -0.44567 | N32: 0.08974 | O32: 0.08974 | P32: 0.0081 | R32: -0.565 | S32: -0.53542 | T32: -0.37223 | U32: 0.16319 | V32: 0.16319 | W32: 0.0266 | Y32: -0.565 | Z32: -0.53542 | AA32: -0.25740 | AB32: 0.27802 | AC32: 0.27802 | AD32: 0.0773 | AF32: -0.565 | AG32: -0.53542 | AH32: -0.35513 | AI32: 0.18029 | AJ32: 0.18029 | AK32: 0.0325
A33: =IF(Quad!J31=FALSE,a,a+(b-a)/5*3) -> -1 | B33: 0.3666666667 | D33: -0.55 | E33: -0.52269 | F33: -0.51000 | G33: 0.01269 | H33: 0.01269 | I33: 0.0002 | K33: -0.55 | L33: -0.52269 | M33: -0.43780 | N33: 0.08489 | O33: 0.08489 | P33: 0.0072 | R33: -0.55 | S33: -0.52269 | T33: -0.36297 | U33: 0.15971 | V33: 0.15971 | W33: 0.0255 | Y33: -0.55 | Z33: -0.52269 | AA33: -0.25558 | AB33: 0.26711 | AC33: 0.26711 | AD33: 0.0713 | AF33: -0.55 | AG33: -0.52269 | AH33: -0.34991 | AI33: 0.17277 | AJ33: 0.17277 | AK33: 0.0299
A34: =IF(Quad!J31=FALSE,a,a+(b-a)/5*4) -> -1 | B34: 0.3666666667 | D34: -0.535 | E34: -0.50984 | F34: -0.49500 | G34: 0.01484 | H34: 0.01484 | I34: 0.0002 | K34: -0.535 | L34: -0.50984 | M34: -0.42971 | N34: 0.08013 | O34: 0.08013 | P34: 0.0064 | R34: -0.535 | S34: -0.50984 | T34: -0.35378 | U34: 0.15606 | V34: 0.15606 | W34: 0.0244 | Y34: -0.535 | Z34: -0.50984 | AA34: -0.25358 | AB34: 0.25626 | AC34: 0.25626 | AD34: 0.0657 | AF34: -0.535 | AG34: -0.50984 | AH34: -0.34466 | AI34: 0.16518 | AJ34: 0.16518 | AK34: 0.0273
A35: =IF(Quad!J31=FALSE,a,b) -> -1 | B35: 0.3666666667 | D35: -0.52 | E35: -0.49688 | F35: -0.48000 | G35: 0.01688 | H35: 0.01688 | I35: 0.0003 | K35: -0.52 | L35: -0.49688 | M35: -0.42141 | N35: 0.07547 | O35: 0.07547 | P35: 0.0057 | R35: -0.52 | S35: -0.49688 | T35: -0.34463 | U35: 0.15225 | V35: 0.15225 | W35: 0.0232 | Y35: -0.52 | Z35: -0.49688 | AA35: -0.25138 | AB35: 0.24550 | AC35: 0.24550 | AD35: 0.0603 | AF35: -0.52 | AG35: -0.49688 | AH35: -0.33935 | AI35: 0.15753 | AJ35: 0.15753 | AK35: 0.0248
D36: =D35+(b-a)/200 -> -0.505 | E36: -0.48381 | F36: -0.46500 | G36: 0.01881 | H36: 0.01881 | I36: 0.0004 | K36: -0.505 | L36: -0.48381 | M36: -0.41289 | N36: 0.07092 | O36: 0.07092 | P36: 0.0050 | R36: =R35+(bb-aa)/200 -> -0.505 | S36: -0.48381 | T36: -0.33553 | U36: 0.14828 | V36: 0.14828 | W36: 0.0220 | Y36: =Y35+(bbb-aaa)/200 -> -0.505 | Z36: -0.48381 | AA36: -0.24898 | AB36: 0.23483 | AC36: 0.23483 | AD36: 0.0551 | AF36: =AF35+(bbbb-aaaa)/200 -> -0.505 | AG36: -0.48381 | AH36: -0.33395 | AI36: 0.14986 | AJ36: 0.14986 | AK36: 0.0225
D37: -0.49 | E37: -0.47063 | F37: -0.45000 | G37: 0.02063 | H37: 0.02063 | I37: 0.0004 | K37: -0.49 | L37: -0.47063 | M37: -0.40415 | N37: 0.06647 | O37: 0.06647 | P37: 0.0044 | R37: -0.49 | S37: -0.47063 | T37: -0.32646 | U37: 0.14417 | V37: 0.14417 | W37: 0.0208 | Y37: -0.49 | Z37: -0.47063 | AA37: -0.24635 | AB37: 0.22428 | AC37: 0.22428 | AD37: 0.0503 | AF37: -0.49 | AG37: -0.47063 | AH37: -0.32843 | AI37: 0.14219 | AJ37: 0.14219 | AK37: 0.0202
D38: -0.475 | E38: -0.45734 | F38: -0.43500 | G38: 0.02234 | H38: 0.02234 | I38: 0.0005 | K38: -0.475 | L38: -0.45734 | M38: -0.39520 | N38: 0.06214 | O38: 0.06214 | P38: 0.0039 | R38: -0.475 | S38: -0.45734 | T38: -0.31741 | U38: 0.13993 | V38: 0.13993 | W38: 0.0196 | Y38: -0.475 | Z38: -0.45734 | AA38: -0.24349 | AB38: 0.21385 | AC38: 0.21385 | AD38: 0.0457 | AF38: -0.475 | AG38: -0.45734 | AH38: -0.32278 | AI38: 0.13456 | AJ38: 0.13456 | AK38: 0.0181
D39: -0.46 | E39: -0.44395 | F39: -0.42000 | G39: 0.02395 | H39: 0.02395 | I39: 0.0006 | K39: -0.46 | L39: -0.44395 | M39: -0.38603 | N39: 0.05792 | O39: 0.05792 | P39: 0.0034 | R39: -0.46 | S39: -0.44395 | T39: -0.30839 | U39: 0.13556 | V39: 0.13556 | W39: 0.0184 | Y39: -0.46 | Z39: -0.44395 | AA39: -0.24039 | AB39: 0.20356 | AC39: 0.20356 | AD39: 0.0414 | AF39: -0.46 | AG39: -0.44395 | AH39: -0.31697 | AI39: 0.12698 | AJ39: 0.12698 | AK39: 0.0161
D40: -0.445 | E40: -0.43046 | F40: -0.40500 | G40: 0.02546 | H40: 0.02546 | I40: 0.0006 | K40: -0.445 | L40: -0.43046 | M40: -0.37665 | N40: 0.05381 | O40: 0.05381 | P40: 0.0029 | R40: -0.445 | S40: -0.43046 | T40: -0.29937 | U40: 0.13108 | V40: 0.13108 | W40: 0.0172 | Y40: -0.445 | Z40: -0.43046 | AA40: -0.23703 | AB40: 0.19343 | AC40: 0.19343 | AD40: 0.0374 | AF40: -0.445 | AG40: -0.43046 | AH40: -0.31098 | AI40: 0.11948 | AJ40: 0.11948 | AK40: 0.0143
D41: -0.43 | E41: -0.41687 | F41: -0.39000 | G41: 0.02687 | H41: 0.02687 | I41: 0.0007 | K41: -0.43 | L41: -0.41687 | M41: -0.36705 | N41: 0.04982 | O41: 0.04982 | P41: 0.0025 | R41: -0.43 | S41: -0.41687 | T41: -0.29036 | U41: 0.12651 | V41: 0.12651 | W41: 0.0160 | Y41: -0.43 | Z41: -0.41687 | AA41: -0.23341 | AB41: 0.18346 | AC41: 0.18346 | AD41: 0.0337 | AF41: -0.43 | AG41: -0.41687 | AH41: -0.30479 | AI41: 0.11208 | AJ41: 0.11208 | AK41: 0.0126
D42: -0.415 | E42: -0.40319 | F42: -0.37500 | G42: 0.02819 | H42: 0.02819 | I42: 0.0008 | K42: -0.415 | L42: -0.40319 | M42: -0.35723 | N42: 0.04596 | O42: 0.04596 | P42: 0.0021 | R42: -0.415 | S42: -0.40319 | T42: -0.28135 | U42: 0.12184 | V42: 0.12184 | W42: 0.0148 | Y42: -0.415 | Z42: -0.40319 | AA42: -0.22952 | AB42: 0.17367 | AC42: 0.17367 | AD42: 0.0302 | AF42: -0.415 | AG42: -0.40319 | AH42: -0.29838 | AI42: 0.10481 | AJ42: 0.10481 | AK42: 0.0110
D43: -0.4 | E43: -0.38942 | F43: -0.36000 | G43: 0.02942 | H43: 0.02942 | I43: 0.0009 | K43: -0.4 | L43: -0.38942 | M43: -0.34720 | N43: 0.04222 | O43: 0.04222 | P43: 0.0018 | R43: -0.4 | S43: -0.38942 | T43: -0.27232 | U43: 0.11710 | V43: 0.11710 | W43: 0.0137 | Y43: -0.4 | Z43: -0.38942 | AA43: -0.22534 | AB43: 0.16407 | AC43: 0.16407 | AD43: 0.0269 | AF43: -0.4 | AG43: -0.38942 | AH43: -0.29174 | AI43: 0.09768 | AJ43: 0.09768 | AK43: 0.0095
D44: -0.385 | E44: -0.37556 | F44: -0.34500 | G44: 0.03056 | H44: 0.03056 | I44: 0.0009 | K44: -0.385 | L44: -0.37556 | M44: -0.33695 | N44: 0.03861 | O44: 0.03861 | P44: 0.0015 | R44: -0.385 | S44: -0.37556 | T44: -0.26327 | U44: 0.11229 | V44: 0.11229 | W44: 0.0126 | Y44: -0.385 | Z44: -0.37556 | AA44: -0.22088 | AB44: 0.15468 | AC44: 0.15468 | AD44: 0.0239 | AF44: -0.385 | AG44: -0.37556 | AH44: -0.28485 | AI44: 0.09071 | AJ44: 0.09071 | AK44: 0.0082
D45: -0.37 | E45: -0.36162 | F45: -0.33000 | G45: 0.03162 | H45: 0.03162 | I45: 0.0010 | K45: -0.37 | L45: -0.36162 | M45: -0.32649 | N45: 0.03513 | O45: 0.03513 | P45: 0.0012 | R45: -0.37 | S45: -0.36162 | T45: -0.25420 | U45: 0.10742 | V45: 0.10742 | W45: 0.0115 | Y45: -0.37 | Z45: -0.36162 | AA45: -0.21612 | AB45: 0.14549 | AC45: 0.14549 | AD45: 0.0212 | AF45: -0.37 | AG45: -0.36162 | AH45: -0.27769 | AI45: 0.08392 | AJ45: 0.08392 | AK45: 0.0070
D46: -0.355 | E46: -0.34759 | F46: -0.31500 | G46: 0.03259 | H46: 0.03259 | I46: 0.0011 | K46: -0.355 | L46: -0.34759 | M46: -0.31581 | N46: 0.03178 | O46: 0.03178 | P46: 0.0010 | R46: -0.355 | S46: -0.34759 | T46: -0.24509 | U46: 0.10250 | V46: 0.10250 | W46: 0.0105 | Y46: -0.355 | Z46: -0.34759 | AA46: -0.21106 | AB46: 0.13653 | AC46: 0.13653 | AD46: 0.0186 | AF46: -0.355 | AG46: -0.34759 | AH46: -0.27026 | AI46: 0.07733 | AJ46: 0.07733 | AK46: 0.0060
D47: -0.34 | E47: -0.33349 | F47: -0.30000 | G47: 0.03349 | H47: 0.03349 | I47: 0.0011 | K47: -0.34 | L47: -0.33349 | M47: -0.30491 | N47: 0.02858 | O47: 0.02858 | P47: 0.0008 | R47: -0.34 | S47: -0.33349 | T47: -0.23594 | U47: 0.09755 | V47: 0.09755 | W47: 0.0095 | Y47: -0.34 | Z47: -0.33349 | AA47: -0.20570 | AB47: 0.12779 | AC47: 0.12779 | AD47: 0.0163 | AF47: -0.34 | AG47: -0.33349 | AH47: -0.26253 | AI47: 0.07095 | AJ47: 0.07095 | AK47: 0.0050
D48: -0.325 | E48: -0.31931 | F48: -0.28500 | G48: 0.03431 | H48: 0.03431 | I48: 0.0012 | K48: -0.325 | L48: -0.31931 | M48: -0.29380 | N48: 0.02551 | O48: 0.02551 | P48: 0.0007 | R48: -0.325 | S48: -0.31931 | T48: -0.22673 | U48: 0.09258 | V48: 0.09258 | W48: 0.0086 | Y48: -0.325 | Z48: -0.31931 | AA48: -0.20002 | AB48: 0.11929 | AC48: 0.11929 | AD48: 0.0142 | AF48: -0.325 | AG48: -0.31931 | AH48: -0.25451 | AI48: 0.06480 | AJ48: 0.06480 | AK48: 0.0042
D49: -0.31 | E49: -0.30506 | F49: -0.27000 | G49: 0.03506 | H49: 0.03506 | I49: 0.0012 | K49: -0.31 | L49: -0.30506 | M49: -0.28247 | N49: 0.02259 | O49: 0.02259 | P49: 0.0005 | R49: -0.31 | S49: -0.30506 | T49: -0.21747 | U49: 0.08759 | V49: 0.08759 | W49: 0.0077 | Y49: -0.31 | Z49: -0.30506 | AA49: -0.19402 | AB49: 0.11104 | AC49: 0.11104 | AD49: 0.0123 | AF49: -0.31 | AG49: -0.30506 | AH49: -0.24617 | AI49: 0.05889 | AJ49: 0.05889 | AK49: 0.0035
D50: -0.295 | E50: -0.29074 | F50: -0.25500 | G50: 0.03574 | H50: 0.03574 | I50: 0.0013 | K50: -0.295 | L50: -0.29074 | M50: -0.27093 | N50: 0.01981 | O50: 0.01981 | P50: 0.0004 | R50: -0.295 | S50: -0.29074 | T50: -0.20814 | U50: 0.08260 | V50: 0.08260 | W50: 0.0068 | Y50: -0.295 | Z50: -0.29074 | AA50: -0.18771 | AB50: 0.10303 | AC50: 0.10303 | AD50: 0.0106 | AF50: -0.295 | AG50: -0.29074 | AH50: -0.23751 | AI50: 0.05323 | AJ50: 0.05323 | AK50: 0.0028
D51: -0.28 | E51: -0.27636 | F51: -0.24000 | G51: 0.03636 | H51: 0.03636 | I51: 0.0013 | K51: -0.28 | L51: -0.27636 | M51: -0.25917 | N51: 0.01719 | O51: 0.01719 | P51: 0.0003 | R51: -0.28 | S51: -0.27636 | T51: -0.19874 | U51: 0.07761 | V51: 0.07761 | W51: 0.0060 | Y51: -0.28 | Z51: -0.27636 | AA51: -0.18107 | AB51: 0.09528 | AC51: 0.09528 | AD51: 0.0091 | AF51: -0.28 | AG51: -0.27636 | AH51: -0.22853 | AI51: 0.04783 | AJ51: 0.04783 | AK51: 0.0023
D52: -0.265 | E52: -0.26191 | F52: -0.22500 | G52: 0.03691 | H52: 0.03691 | I52: 0.0014 | K52: -0.265 | L52: -0.26191 | M52: -0.24719 | N52: 0.01472 | O52: 0.01472 | P52: 0.0002 | R52: -0.265 | S52: -0.26191 | T52: -0.18926 | U52: 0.07265 | V52: 0.07265 | W52: 0.0053 | Y52: -0.265 | Z52: -0.26191 | AA52: -0.17412 | AB52: 0.08779 | AC52: 0.08779 | AD52: 0.0077 | AF52: -0.265 | AG52: -0.26191 | AH52: -0.21921 | AI52: 0.04270 | AJ52: 0.04270 | AK52: 0.0018
D53: -0.25 | E53: -0.24740 | F53: -0.21000 | G53: 0.03740 | H53: 0.03740 | I53: 0.0014 | K53: -0.25 | L53: -0.24740 | M53: -0.23500 | N53: 0.01240 | O53: 0.01240 | P53: 0.0002 | R53: -0.25 | S53: -0.24740 | T53: -0.17969 | U53: 0.06772 | V53: 0.06772 | W53: 0.0046 | Y53: -0.25 | Z53: -0.24740 | AA53: -0.16684 | AB53: 0.08057 | AC53: 0.08057 | AD53: 0.0065 | AF53: -0.25 | AG53: -0.24740 | AH53: -0.20956 | AI53: 0.03785 | AJ53: 0.03785 | AK53: 0.0014
D54: -0.235 | E54: -0.23284 | F54: -0.19500 | G54: 0.03784 | H54: 0.03784 | I54: 0.0014 | K54: -0.235 | L54: -0.23284 | M54: -0.22259 | N54: 0.01025 | O54: 0.01025 | P54: 0.0001 | R54: -0.235 | S54: -0.23284 | T54: -0.17002 | U54: 0.06282 | V54: 0.06282 | W54: 0.0039 | Y54: -0.235 | Z54: -0.23284 | AA54: -0.15923 | AB54: 0.07361 | AC54: 0.07361 | AD54: 0.0054 | AF54: -0.235 | AG54: -0.23284 | AH54: -0.19956 | AI54: 0.03328 | AJ54: 0.03328 | AK54: 0.0011
D55: -0.22 | E55: -0.21823 | F55: -0.18000 | G55: 0.03823 | H55: 0.03823 | I55: 0.0015 | K55: -0.22 | L55: -0.21823 | M55: -0.20997 | N55: 0.00826 | O55: 0.00826 | P55: 0.0001 | R55: -0.22 | S55: -0.21823 | T55: -0.16025 | U55: 0.05798 | V55: 0.05798 | W55: 0.0034 | Y55: -0.22 | Z55: -0.21823 | AA55: -0.15130 | AB55: 0.06693 | AC55: 0.06693 | AD55: 0.0045 | AF55: -0.22 | AG55: -0.21823 | AH55: -0.18923 | AI55: 0.02900 | AJ55: 0.02900 | AK55: 0.0008
D56: -0.205 | E56: -0.20357 | F56: -0.16500 | G56: 0.03857 | H56: 0.03857 | I56: 0.0015 | K56: -0.205 | L56: -0.20357 | M56: -0.19713 | N56: 0.00644 | O56: 0.00644 | P56: 0.0000 | R56: -0.205 | S56: -0.20357 | T56: -0.15036 | U56: 0.05321 | V56: 0.05321 | W56: 0.0028 | Y56: -0.205 | Z56: -0.20357 | AA56: -0.14305 | AB56: 0.06052 | AC56: 0.06052 | AD56: 0.0037 | AF56: -0.205 | AG56: -0.20357 | AH56: -0.17854 | AI56: 0.02502 | AJ56: 0.02502 | AK56: 0.0006
D57: -0.19 | E57: -0.18886 | F57: -0.15000 | G57: 0.03886 | H57: 0.03886 | I57: 0.0015 | K57: -0.19 | L57: -0.18886 | M57: -0.18407 | N57: 0.00479 | O57: 0.00479 | P57: 0.0000 | R57: -0.19 | S57: -0.18886 | T57: -0.14036 | U57: 0.04850 | V57: 0.04850 | W57: 0.0024 | Y57: -0.19 | Z57: -0.18886 | AA57: -0.13447 | AB57: 0.05439 | AC57: 0.05439 | AD57: 0.0030 | AF57: -0.19 | AG57: -0.18886 | AH57: -0.16752 | AI57: 0.02134 | AJ57: 0.02134 | AK57: 0.0005
D58: -0.175 | E58: -0.17411 | F58: -0.13500 | G58: 0.03911 | H58: 0.03911 | I58: 0.0015 | K58: -0.175 | L58: -0.17411 | M58: -0.17080 | N58: 0.00331 | O58: 0.00331 | P58: 0.0000 | R58: -0.175 | S58: -0.17411 | T58: -0.13022 | U58: 0.04388 | V58: 0.04388 | W58: 0.0019 | Y58: -0.175 | Z58: -0.17411 | AA58: -0.12558 | AB58: 0.04853 | AC58: 0.04853 | AD58: 0.0024 | AF58: -0.175 | AG58: -0.17411 | AH58: -0.15614 | AI58: 0.01796 | AJ58: 0.01796 | AK58: 0.0003
D59: -0.16 | E59: -0.15932 | F59: -0.12000 | G59: 0.03932 | H59: 0.03932 | I59: 0.0015 | K59: -0.16 | L59: -0.15932 | M59: -0.15731 | N59: 0.00201 | O59: 0.00201 | P59: 0.0000 | R59: -0.16 | S59: -0.15932 | T59: -0.11996 | U59: 0.03936 | V59: 0.03936 | W59: 0.0015 | Y59: -0.16 | Z59: -0.15932 | AA59: -0.11637 | AB59: 0.04295 | AC59: 0.04295 | AD59: 0.0018 | AF59: -0.16 | AG59: -0.15932 | AH59: -0.14443 | AI59: 0.01489 | AJ59: 0.01489 | AK59: 0.0002
D60: -0.145 | E60: -0.14449 | F60: -0.10500 | G60: 0.03949 | H60: 0.03949 | I60: 0.0016 | K60: -0.145 | L60: -0.14449 | M60: -0.14361 | N60: 0.00088 | O60: 0.00088 | P60: 0.0000 | R60: -0.145 | S60: -0.14449 | T60: -0.10955 | U60: 0.03495 | V60: 0.03495 | W60: 0.0012 | Y60: -0.145 | Z60: -0.14449 | AA60: -0.10685 | AB60: 0.03764 | AC60: 0.03764 | AD60: 0.0014 | AF60: -0.145 | AG60: -0.14449 | AH60: -0.13238 | AI60: 0.01211 | AJ60: 0.01211 | AK60: 0.0001
D61: -0.13 | E61: -0.12963 | F61: -0.09000 | G61: 0.03963 | H61: 0.03963 | I61: 0.0016 | K61: -0.13 | L61: -0.12963 | M61: -0.12969 | N61: -0.00005 | O61: 0.00005 | P61: 0.0000 | R61: -0.13 | S61: -0.12963 | T61: -0.09898 | U61: 0.03065 | V61: 0.03065 | W61: 0.0009 | Y61: -0.13 | Z61: -0.12963 | AA61: -0.09702 | AB61: 0.03261 | AC61: 0.03261 | AD61: 0.0011 | AF61: -0.13 | AG61: -0.12963 | AH61: -0.12000 | AI61: 0.00963 | AJ61: 0.00963 | AK61: 0.0001
D62: -0.115 | E62: -0.11475 | F62: -0.07500 | G62: 0.03975 | H62: 0.03975 | I62: 0.0016 | K62: -0.115 | L62: -0.11475 | M62: -0.11555 | N62: -0.00081 | O62: 0.00081 | P62: 0.0000 | R62: -0.115 | S62: -0.11475 | T62: -0.08827 | U62: 0.02648 | V62: 0.02648 | W62: 0.0007 | Y62: -0.115 | Z62: -0.11475 | AA62: -0.08689 | AB62: 0.02785 | AC62: 0.02785 | AD62: 0.0008 | AF62: -0.115 | AG62: -0.11475 | AH62: -0.10729 | AI62: 0.00745 | AJ62: 0.00745 | AK62: 0.0001
D63: -0.1 | E63: -0.09983 | F63: -0.06000 | G63: 0.03983 | H63: 0.03983 | I63: 0.0016 | K63: -0.1 | L63: -0.09983 | M63: -0.10120 | N63: -0.00137 | O63: 0.00137 | P63: 0.0000 | R63: -0.1 | S63: -0.09983 | T63: -0.07738 | U63: 0.02245 | V63: 0.02245 | W63: 0.0005 | Y63: -0.1 | Z63: -0.09983 | AA63: -0.07647 | AB63: 0.02336 | AC63: 0.02336 | AD63: 0.0005 | AF63: -0.1 | AG63: -0.09983 | AH63: -0.09427 | AI63: 0.00557 | AJ63: 0.00557 | AK63: 0.0000
D64: -0.085 | E64: -0.08490 | F64: -0.04500 | G64: 0.03990 | H64: 0.03990 | I64: 0.0016 | K64: -0.085 | L64: -0.08490 | M64: -0.08663 | N64: -0.00173 | O64: 0.00173 | P64: 0.0000 | R64: -0.085 | S64: -0.08490 | T64: -0.06632 | U64: 0.01858 | V64: 0.01858 | W64: 0.0003 | Y64: -0.085 | Z64: -0.08490 | AA64: -0.06576 | AB64: 0.01914 | AC64: 0.01914 | AD64: 0.0004 | AF64: -0.085 | AG64: -0.08490 | AH64: -0.08093 | AI64: 0.00397 | AJ64: 0.00397 | AK64: 0.0000
D65: -0.07 | E65: -0.06994 | F65: -0.03000 | G65: 0.03994 | H65: 0.03994 | I65: 0.0016 | K65: -0.07 | L65: -0.06994 | M65: -0.07185 | N65: -0.00191 | O65: 0.00191 | P65: 0.0000 | R65: -0.07 | S65: -0.06994 | T65: -0.05508 | U65: 0.01486 | V65: 0.01486 | W65: 0.0002 | Y65: -0.07 | Z65: -0.06994 | AA65: -0.05476 | AB65: 0.01518 | AC65: 0.01518 | AD65: 0.0002 | AF65: -0.07 | AG65: -0.06994 | AH65: -0.06729 | AI65: 0.00265 | AJ65: 0.00265 | AK65: 0.0000
D66: -0.055 | E66: -0.05497 | F66: -0.01500 | G66: 0.03997 | H66: 0.03997 | I66: 0.0016 | K66: -0.055 | L66: -0.05497 | M66: -0.05685 | N66: -0.00188 | O66: 0.00188 | P66: 0.0000 | R66: -0.055 | S66: -0.05497 | T66: -0.04365 | U66: 0.01132 | V66: 0.01132 | W66: 0.0001 | Y66: -0.055 | Z66: -0.05497 | AA66: -0.04349 | AB66: 0.01148 | AC66: 0.01148 | AD66: 0.0001 | AF66: -0.055 | AG66: -0.05497 | AH66: -0.05336 | AI66: 0.00161 | AJ66: 0.00161 | AK66: 0.0000
D67: -0.04 | E67: -0.03999 | F67: =aa00+bb00*D67 -> 0.00000 | G67: 0.03999 | H67: 0.03999 | I67: 0.0016 | K67: -0.04 | L67: -0.03999 | M67: =a0+b0*D67+c0*D67^2 -> -0.04163 | N67: -0.00164 | O67: 0.00164 | P67: 0.0000 | R67: -0.04 | S67: -0.03999 | T67: =a00+b00*R67+c00*R67^2+d00*D67^3 -> -0.03202 | U67: 0.00797 | V67: 0.00797 | W67: 0.0001 | Y67: -0.04 | Z67: -0.03999 | AA67: =a000+b000*Y67+c000*Y67^2+d000*R67^3+e000*R67^4 -> -0.03196 | AB67: 0.00803 | AC67: 0.00803 | AD67: 0.0001 | AF67: -0.04 | AG67: -0.03999 | AH67: =a0000+b0000*AF67+c0000*AF67^2+d0000*AF67^3+e0000*AF67^4+f0000*AF67^5 -> -0.03915 | AI67: 0.00084 | AJ67: 0.00084 | AK67: 0.0000
D68: =D67+(b-a)/200 -> -0.025 | E68: =SIN(D68) -> -0.02500 | F68: 0.01500 | G68: =F68-E68 -> 0.04000 | H68: =ABS(G68) -> 0.04000 | I68: =G68^2 -> 0.0016 | K68: =K67+(b-a)/200 -> -0.025 | L68: =SIN(K68) -> -0.02500 | M68: -0.02620 | N68: =M68-L68 -> -0.00120 | O68: =ABS(N68) -> 0.00120 | P68: =N68^2 -> 0.0000 | R68: =R67+(bb-aa)/200 -> -0.025 | S68: =SIN(R68) -> -0.02500 | T68: -0.02019 | U68: =T68-S68 -> 0.00480 | V68: =ABS(U68) -> 0.00480 | W68: =U68^2 -> 0.0000 | Y68: =Y67+(bbb-aaa)/200 -> -0.025 | Z68: =SIN(Y68) -> -0.02500 | AA68: -0.02018 | AB68: =AA68-Z68 -> 0.00482 | AC68: =ABS(AB68) -> 0.00482 | AD68: =AB68^2 -> 0.0000 | AF68: =AF67+(bbbb-aaaa)/200 -> -0.025 | AG68: =SIN(AF68) -> -0.02500 | AH68: -0.02467 | AI68: =AH68-AG68 -> 0.00032 | AJ68: =ABS(AI68) -> 0.00032 | AK68: =AI68^2 -> 0.0000
D69: -0.01 | E69: -0.01000 | F69: 0.03000 | G69: 0.04000 | H69: 0.04000 | I69: 0.0016 | K69: -0.01 | L69: -0.01000 | M69: -0.01055 | N69: -0.00055 | O69: 0.00055 | P69: 0.0000 | R69: -0.01 | S69: -0.01000 | T69: -0.00815 | U69: 0.00185 | V69: 0.00185 | W69: 0.0000 | Y69: -0.01 | Z69: -0.01000 | AA69: -0.00815 | AB69: 0.00185 | AC69: 0.00185 | AD69: 0.0000 | AF69: -0.01 | AG69: -0.01000 | AH69: -0.00995 | AI69: 0.00005 | AJ69: 0.00005 | AK69: 0.0000
D70: 0.005 | E70: 0.00500 | F70: 0.04500 | G70: 0.04000 | H70: 0.04000 | I70: 0.0016 | K70: 0.005 | L70: 0.00500 | M70: 0.00531 | N70: 0.00031 | O70: 0.00031 | P70: 0.0000 | R70: 0.005 | S70: 0.00500 | T70: 0.00411 | U70: -0.00089 | V70: 0.00089 | W70: 0.0000 | Y70: 0.005 | Z70: 0.00500 | AA70: 0.00411 | AB70: -0.00089 | AC70: 0.00089 | AD70: 0.0000 | AF70: 0.005 | AG70: 0.00500 | AH70: 0.00501 | AI70: 0.00001 | AJ70: 0.00001 | AK70: 0.0000
D71: 0.02 | E71: 0.02000 | F71: 0.06000 | G71: 0.04000 | H71: 0.04000 | I71: 0.0016 | K71: 0.02 | L71: 0.02000 | M71: 0.02139 | N71: 0.00139 | O71: 0.00139 | P71: 0.0000 | R71: 0.02 | S71: 0.02000 | T71: 0.01660 | U71: -0.00340 | V71: 0.00340 | W71: 0.0000 | Y71: 0.02 | Z71: 0.02000 | AA71: 0.01660 | AB71: -0.00340 | AC71: 0.00340 | AD71: 0.0000 | AF71: 0.02 | AG71: 0.02000 | AH71: 0.02019 | AI71: 0.00019 | AJ71: 0.00019 | AK71: 0.0000
D72: 0.035 | E72: 0.03499 | F72: 0.07500 | G72: 0.04001 | H72: 0.04001 | I72: 0.0016 | K72: 0.035 | L72: 0.03499 | M72: 0.03769 | N72: 0.00270 | O72: 0.00270 | P72: 0.0000 | R72: 0.035 | S72: 0.03499 | T72: 0.02933 | U72: -0.00566 | V72: 0.00566 | W72: 0.0000 | Y72: 0.035 | Z72: 0.03499 | AA72: 0.02929 | AB72: -0.00571 | AC72: 0.00571 | AD72: 0.0000 | AF72: 0.035 | AG72: 0.03499 | AH72: 0.03558 | AI72: 0.00058 | AJ72: 0.00058 | AK72: 0.0000
D73: 0.05 | E73: 0.04998 | F73: 0.09000 | G73: 0.04002 | H73: 0.04002 | I73: 0.0016 | K73: 0.05 | L73: 0.04998 | M73: 0.05420 | N73: 0.00422 | O73: 0.00422 | P73: 0.0000 | R73: 0.05 | S73: 0.04998 | T73: 0.04230 | U73: -0.00768 | V73: 0.00768 | W73: 0.0001 | Y73: 0.05 | Z73: 0.04998 | AA73: 0.04217 | AB73: -0.00781 | AC73: 0.00781 | AD73: 0.0001 | AF73: 0.05 | AG73: 0.04998 | AH73: 0.05114 | AI73: 0.00116 | AJ73: 0.00116 | AK73: 0.0000
D74: 0.065 | E74: 0.06495 | F74: 0.10500 | G74: 0.04005 | H74: 0.04005 | I74: 0.0016 | K74: 0.065 | L74: 0.06495 | M74: 0.07093 | N74: 0.00597 | O74: 0.00597 | P74: 0.0000 | R74: 0.065 | S74: 0.06495 | T74: 0.05552 | U74: -0.00944 | V74: 0.00944 | W74: 0.0001 | Y74: 0.065 | Z74: 0.06495 | AA74: 0.05524 | AB74: -0.00971 | AC74: 0.00971 | AD74: 0.0001 | AF74: 0.065 | AG74: 0.06495 | AH74: 0.06687 | AI74: 0.00191 | AJ74: 0.00191 | AK74: 0.0000
D75: 0.08 | E75: 0.07991 | F75: 0.12000 | G75: 0.04009 | H75: 0.04009 | I75: 0.0016 | K75: 0.08 | L75: 0.07991 | M75: 0.08787 | N75: 0.00796 | O75: 0.00796 | P75: 0.0001 | R75: 0.08 | S75: 0.07991 | T75: 0.06899 | U75: -0.01092 | V75: 0.01092 | W75: 0.0001 | Y75: 0.08 | Z75: 0.07991 | AA75: 0.06847 | AB75: -0.01144 | AC75: 0.01144 | AD75: 0.0001 | AF75: 0.08 | AG75: 0.07991 | AH75: 0.08274 | AI75: 0.00282 | AJ75: 0.00282 | AK75: 0.0000
D76: 0.095 | E76: 0.09486 | F76: 0.13500 | G76: 0.04014 | H76: 0.04014 | I76: 0.0016 | K76: 0.095 | L76: 0.09486 | M76: 0.10503 | N76: 0.01017 | O76: 0.01017 | P76: 0.0001 | R76: 0.095 | S76: 0.09486 | T76: 0.08274 | U76: -0.01212 | V76: 0.01212 | W76: 0.0001 | Y76: 0.095 | Z76: 0.09486 | AA76: 0.08186 | AB76: -0.01300 | AC76: 0.01300 | AD76: 0.0002 | AF76: 0.095 | AG76: 0.09486 | AH76: 0.09872 | AI76: 0.00387 | AJ76: 0.00387 | AK76: 0.0000
D77: 0.11 | E77: 0.10978 | F77: 0.15000 | G77: 0.04022 | H77: 0.04022 | I77: 0.0016 | K77: 0.11 | L77: 0.10978 | M77: 0.12241 | N77: 0.01263 | O77: 0.01263 | P77: 0.0002 | R77: 0.11 | S77: 0.10978 | T77: 0.09676 | U77: -0.01302 | V77: 0.01302 | W77: 0.0002 | Y77: 0.11 | Z77: 0.10978 | AA77: 0.09538 | AB77: -0.01440 | AC77: 0.01440 | AD77: 0.0002 | AF77: 0.11 | AG77: 0.10978 | AH77: 0.11481 | AI77: 0.00503 | AJ77: 0.00503 | AK77: 0.0000
D78: 0.125 | E78: 0.12467 | F78: 0.16500 | G78: 0.04033 | H78: 0.04033 | I78: 0.0016 | K78: 0.125 | L78: 0.12467 | M78: 0.14000 | N78: 0.01533 | O78: 0.01533 | P78: 0.0002 | R78: 0.125 | S78: 0.12467 | T78: 0.11105 | U78: -0.01362 | V78: 0.01362 | W78: 0.0002 | Y78: 0.125 | Z78: 0.12467 | AA78: 0.10902 | AB78: -0.01566 | AC78: 0.01566 | AD78: 0.0002 | AF78: 0.125 | AG78: 0.12467 | AH78: 0.13096 | AI78: 0.00628 | AJ78: 0.00628 | AK78: 0.0000
D79: 0.14 | E79: 0.13954 | F79: 0.18000 | G79: 0.04046 | H79: 0.04046 | I79: 0.0016 | K79: 0.14 | L79: 0.13954 | M79: 0.15781 | N79: 0.01826 | O79: 0.01826 | P79: 0.0003 | R79: 0.14 | S79: 0.13954 | T79: 0.12564 | U79: -0.01390 | V79: 0.01390 | W79: 0.0002 | Y79: 0.14 | Z79: 0.13954 | AA79: 0.12275 | AB79: -0.01679 | AC79: 0.01679 | AD79: 0.0003 | AF79: 0.14 | AG79: 0.13954 | AH79: 0.14716 | AI79: 0.00761 | AJ79: 0.00761 | AK79: 0.0001
D80: 0.155 | E80: 0.15438 | F80: 0.19500 | G80: 0.04062 | H80: 0.04062 | I80: 0.0016 | K80: 0.155 | L80: 0.15438 | M80: 0.17583 | N80: 0.02145 | O80: 0.02145 | P80: 0.0005 | R80: 0.155 | S80: 0.15438 | T80: 0.14053 | U80: -0.01385 | V80: 0.01385 | W80: 0.0002 | Y80: 0.155 | Z80: 0.15438 | AA80: 0.13657 | AB80: -0.01781 | AC80: 0.01781 | AD80: 0.0003 | AF80: 0.155 | AG80: 0.15438 | AH80: 0.16337 | AI80: 0.00899 | AJ80: 0.00899 | AK80: 0.0001
D81: 0.17 | E81: 0.16918 | F81: 0.21000 | G81: 0.04082 | H81: 0.04082 | I81: 0.0017 | K81: 0.17 | L81: 0.16918 | M81: 0.19407 | N81: 0.02489 | O81: 0.02489 | P81: 0.0006 | R81: 0.17 | S81: 0.16918 | T81: 0.15572 | U81: -0.01347 | V81: 0.01347 | W81: 0.0002 | Y81: 0.17 | Z81: 0.16918 | AA81: 0.15046 | AB81: -0.01872 | AC81: 0.01872 | AD81: 0.0004 | AF81: 0.17 | AG81: 0.16918 | AH81: 0.17957 | AI81: 0.01039 | AJ81: 0.01039 | AK81: 0.0001
D82: 0.185 | E82: 0.18395 | F82: 0.22500 | G82: 0.04105 | H82: 0.04105 | I82: 0.0017 | K82: 0.185 | L82: 0.18395 | M82: 0.21253 | N82: 0.02858 | O82: 0.02858 | P82: 0.0008 | R82: 0.185 | S82: 0.18395 | T82: 0.17122 | U82: -0.01273 | V82: 0.01273 | W82: 0.0002 | Y82: 0.185 | Z82: 0.18395 | AA82: 0.16439 | AB82: -0.01956 | AC82: 0.01956 | AD82: 0.0004 | AF82: 0.185 | AG82: 0.18395 | AH82: 0.19574 | AI82: 0.01179 | AJ82: 0.01179 | AK82: 0.0001
D83: 0.2 | E83: 0.19867 | F83: 0.24000 | G83: 0.04133 | H83: 0.04133 | I83: 0.0017 | K83: 0.2 | L83: 0.19867 | M83: 0.23120 | N83: 0.03253 | O83: 0.03253 | P83: 0.0011 | R83: 0.2 | S83: 0.19867 | T83: 0.18704 | U83: -0.01163 | V83: 0.01163 | W83: 0.0001 | Y83: 0.2 | Z83: 0.19867 | AA83: 0.17834 | AB83: -0.02033 | AC83: 0.02033 | AD83: 0.0004 | AF83: 0.2 | AG83: 0.19867 | AH83: 0.21183 | AI83: 0.01316 | AJ83: 0.01316 | AK83: 0.0002
D84: 0.215 | E84: 0.21335 | F84: 0.25500 | G84: 0.04165 | H84: 0.04165 | I84: 0.0017 | K84: 0.215 | L84: 0.21335 | M84: 0.25009 | N84: 0.03674 | O84: 0.03674 | P84: 0.0013 | R84: 0.215 | S84: 0.21335 | T84: 0.20319 | U84: -0.01016 | V84: 0.01016 | W84: 0.0001 | Y84: 0.215 | Z84: 0.21335 | AA84: 0.19229 | AB84: -0.02106 | AC84: 0.02106 | AD84: 0.0004 | AF84: 0.215 | AG84: 0.21335 | AH84: 0.22783 | AI84: 0.01448 | AJ84: 0.01448 | AK84: 0.0002
D85: 0.23 | E85: 0.22798 | F85: 0.27000 | G85: 0.04202 | H85: 0.04202 | I85: 0.0018 | K85: 0.23 | L85: 0.22798 | M85: 0.26919 | N85: 0.04121 | O85: 0.04121 | P85: 0.0017 | R85: 0.23 | S85: 0.22798 | T85: 0.21967 | U85: -0.00830 | V85: 0.00830 | W85: 0.0001 | Y85: 0.23 | Z85: 0.22798 | AA85: 0.20622 | AB85: -0.02176 | AC85: 0.02176 | AD85: 0.0005 | AF85: 0.23 | AG85: 0.22798 | AH85: 0.24368 | AI85: 0.01571 | AJ85: 0.01571 | AK85: 0.0002
D86: 0.245 | E86: 0.24256 | F86: 0.28500 | G86: 0.04244 | H86: 0.04244 | I86: 0.0018 | K86: 0.245 | L86: 0.24256 | M86: 0.28851 | N86: 0.04596 | O86: 0.04596 | P86: 0.0021 | R86: 0.245 | S86: 0.24256 | T86: 0.23650 | U86: -0.00606 | V86: 0.00606 | W86: 0.0000 | Y86: 0.245 | Z86: 0.24256 | AA86: 0.22011 | AB86: -0.02245 | AC86: 0.02245 | AD86: 0.0005 | AF86: 0.245 | AG86: 0.24256 | AH86: 0.25937 | AI86: 0.01682 | AJ86: 0.01682 | AK86: 0.0003
D87: 0.26 | E87: 0.25708 | F87: 0.30000 | G87: 0.04292 | H87: 0.04292 | I87: 0.0018 | K87: 0.26 | L87: 0.25708 | M87: 0.30805 | N87: 0.05097 | O87: 0.05097 | P87: 0.0026 | R87: 0.26 | S87: 0.25708 | T87: 0.25368 | U87: -0.00340 | V87: 0.00340 | W87: 0.0000 | Y87: 0.26 | Z87: 0.25708 | AA87: 0.23393 | AB87: -0.02315 | AC87: 0.02315 | AD87: 0.0005 | AF87: 0.26 | AG87: 0.25708 | AH87: 0.27486 | AI87: 0.01778 | AJ87: 0.01778 | AK87: 0.0003
D88: 0.275 | E88: 0.27155 | F88: 0.31500 | G88: 0.04345 | H88: 0.04345 | I88: 0.0019 | K88: 0.275 | L88: 0.27155 | M88: 0.32780 | N88: 0.05625 | O88: 0.05625 | P88: 0.0032 | R88: 0.275 | S88: 0.27155 | T88: 0.27122 | U88: -0.00033 | V88: 0.00033 | W88: 0.0000 | Y88: 0.275 | Z88: 0.27155 | AA88: 0.24767 | AB88: -0.02388 | AC88: 0.02388 | AD88: 0.0006 | AF88: 0.275 | AG88: 0.27155 | AH88: 0.29010 | AI88: 0.01856 | AJ88: 0.01856 | AK88: 0.0003
D89: 0.29 | E89: 0.28595 | F89: 0.33000 | G89: 0.04405 | H89: 0.04405 | I89: 0.0019 | K89: 0.29 | L89: 0.28595 | M89: 0.34777 | N89: 0.06182 | O89: 0.06182 | P89: 0.0038 | R89: 0.29 | S89: 0.28595 | T89: 0.28912 | U89: 0.00317 | V89: 0.00317 | W89: 0.0000 | Y89: 0.29 | Z89: 0.28595 | AA89: 0.26129 | AB89: -0.02466 | AC89: 0.02466 | AD89: 0.0006 | AF89: 0.29 | AG89: 0.28595 | AH89: 0.30507 | AI89: 0.01912 | AJ89: 0.01912 | AK89: 0.0004
D90: 0.305 | E90: 0.30029 | F90: 0.34500 | G90: 0.04471 | H90: 0.04471 | I90: 0.0020 | K90: 0.305 | L90: 0.30029 | M90: 0.36795 | N90: 0.06766 | O90: 0.06766 | P90: 0.0046 | R90: 0.305 | S90: 0.30029 | T90: 0.30739 | U90: 0.00710 | V90: 0.00710 | W90: 0.0001 | Y90: 0.305 | Z90: 0.30029 | AA90: 0.27477 | AB90: -0.02553 | AC90: 0.02553 | AD90: 0.0007 | AF90: 0.305 | AG90: 0.30029 | AH90: 0.31973 | AI90: 0.01944 | AJ90: 0.01944 | AK90: 0.0004
D91: 0.32 | E91: 0.31457 | F91: 0.36000 | G91: 0.04543 | H91: 0.04543 | I91: 0.0021 | K91: 0.32 | L91: 0.31457 | M91: 0.38835 | N91: 0.07379 | O91: 0.07379 | P91: 0.0054 | R91: 0.32 | S91: 0.31457 | T91: 0.32605 | U91: 0.01149 | V91: 0.01149 | W91: 0.0001 | Y91: 0.32 | Z91: 0.31457 | AA91: 0.28808 | AB91: -0.02649 | AC91: 0.02649 | AD91: 0.0007 | AF91: 0.32 | AG91: 0.31457 | AH91: 0.33403 | AI91: 0.01946 | AJ91: 0.01946 | AK91: 0.0004
D92: 0.335 | E92: 0.32877 | F92: 0.37500 | G92: 0.04623 | H92: 0.04623 | I92: 0.0021 | K92: 0.335 | L92: 0.32877 | M92: 0.40897 | N92: 0.08020 | O92: 0.08020 | P92: 0.0064 | R92: 0.335 | S92: 0.32877 | T92: 0.34510 | U92: 0.01633 | V92: 0.01633 | W92: 0.0003 | Y92: 0.335 | Z92: 0.32877 | AA92: 0.30120 | AB92: -0.02757 | AC92: 0.02757 | AD92: 0.0008 | AF92: 0.335 | AG92: 0.32877 | AH92: 0.34794 | AI92: 0.01917 | AJ92: 0.01917 | AK92: 0.0004
D93: 0.35 | E93: 0.34290 | F93: 0.39000 | G93: 0.04710 | H93: 0.04710 | I93: 0.0022 | K93: 0.35 | L93: 0.34290 | M93: 0.42980 | N93: 0.08690 | O93: 0.08690 | P93: 0.0076 | R93: 0.35 | S93: 0.34290 | T93: 0.36454 | U93: 0.02164 | V93: 0.02164 | W93: 0.0005 | Y93: 0.35 | Z93: 0.34290 | AA93: 0.31410 | AB93: -0.02880 | AC93: 0.02880 | AD93: 0.0008 | AF93: 0.35 | AG93: 0.34290 | AH93: 0.36140 | AI93: 0.01851 | AJ93: 0.01851 | AK93: 0.0003
D94: 0.365 | E94: 0.35695 | F94: 0.40500 | G94: 0.04805 | H94: 0.04805 | I94: 0.0023 | K94: 0.365 | L94: 0.35695 | M94: 0.45085 | N94: 0.09390 | O94: 0.09390 | P94: 0.0088 | R94: 0.365 | S94: 0.35695 | T94: 0.38439 | U94: 0.02744 | V94: 0.02744 | W94: 0.0008 | Y94: 0.365 | Z94: 0.35695 | AA94: 0.32675 | AB94: -0.03020 | AC94: 0.03020 | AD94: 0.0009 | AF94: 0.365 | AG94: 0.35695 | AH94: 0.37439 | AI94: 0.01745 | AJ94: 0.01745 | AK94: 0.0003
D95: 0.38 | E95: 0.37092 | F95: 0.42000 | G95: 0.04908 | H95: 0.04908 | I95: 0.0024 | K95: 0.38 | L95: 0.37092 | M95: 0.47211 | N95: 0.10119 | O95: 0.10119 | P95: 0.0102 | R95: 0.38 | S95: 0.37092 | T95: 0.40465 | U95: 0.03373 | V95: 0.03373 | W95: 0.0011 | Y95: 0.38 | Z95: 0.37092 | AA95: 0.33912 | AB95: -0.03180 | AC95: 0.03180 | AD95: 0.0010 | AF95: 0.38 | AG95: 0.37092 | AH95: 0.38686 | AI95: 0.01594 | AJ95: 0.01594 | AK95: 0.0003
D96: 0.395 | E96: 0.38481 | F96: 0.43500 | G96: 0.05019 | H96: 0.05019 | I96: 0.0025 | K96: 0.395 | L96: 0.38481 | M96: 0.49359 | N96: 0.10878 | O96: 0.10878 | P96: 0.0118 | R96: 0.395 | S96: 0.38481 | T96: 0.42533 | U96: 0.04052 | V96: 0.04052 | W96: 0.0016 | Y96: 0.395 | Z96: 0.38481 | AA96: 0.35119 | AB96: -0.03362 | AC96: 0.03362 | AD96: 0.0011 | AF96: 0.395 | AG96: 0.38481 | AH96: 0.39876 | AI96: 0.01395 | AJ96: 0.01395 | AK96: 0.0002
D97: 0.41 | E97: 0.39861 | F97: 0.45000 | G97: 0.05139 | H97: 0.05139 | I97: 0.0026 | K97: 0.41 | L97: 0.39861 | M97: 0.51529 | N97: 0.11668 | O97: 0.11668 | P97: 0.0136 | R97: 0.41 | S97: 0.39861 | T97: 0.44644 | U97: 0.04783 | V97: 0.04783 | W97: 0.0023 | Y97: 0.41 | Z97: 0.39861 | AA97: 0.36291 | AB97: -0.03569 | AC97: 0.03569 | AD97: 0.0013 | AF97: 0.41 | AG97: 0.39861 | AH97: 0.41004 | AI97: 0.01143 | AJ97: 0.01143 | AK97: 0.0001
D98: 0.425 | E98: 0.41232 | F98: 0.46500 | G98: 0.05268 | H98: 0.05268 | I98: 0.0028 | K98: 0.425 | L98: 0.41232 | M98: 0.53720 | N98: 0.12488 | O98: 0.12488 | P98: 0.0156 | R98: 0.425 | S98: 0.41232 | T98: 0.46798 | U98: 0.05566 | V98: 0.05566 | W98: 0.0031 | Y98: 0.425 | Z98: 0.41232 | AA98: 0.37427 | AB98: -0.03805 | AC98: 0.03805 | AD98: 0.0014 | AF98: 0.425 | AG98: 0.41232 | AH98: 0.42066 | AI98: 0.00834 | AJ98: 0.00834 | AK98: 0.0001
D99: 0.44 | E99: 0.42594 | F99: 0.48000 | G99: 0.05406 | H99: 0.05406 | I99: 0.0029 | K99: 0.44 | L99: 0.42594 | M99: 0.55933 | N99: 0.13339 | O99: 0.13339 | P99: 0.0178 | R99: 0.44 | S99: 0.42594 | T99: 0.48997 | U99: 0.06403 | V99: 0.06403 | W99: 0.0041 | Y99: 0.44 | Z99: 0.42594 | AA99: 0.38523 | AB99: -0.04071 | AC99: 0.04071 | AD99: 0.0017 | AF99: 0.44 | AG99: 0.42594 | AH99: 0.43058 | AI99: 0.00464 | AJ99: 0.00464 | AK99: 0.0000
D100: =D99+(b-a)/200 -> 0.455 | E100: 0.43946 | F100: 0.49500 | G100: 0.05554 | H100: 0.05554 | I100: 0.0031 | K100: 0.455 | L100: 0.43946 | M100: 0.58167 | N100: 0.14221 | O100: 0.14221 | P100: 0.0202 | R100: =R99+(bb-aa)/200 -> 0.455 | S100: 0.43946 | T100: 0.51241 | U100: 0.07294 | V100: 0.07294 | W100: 0.0053 | Y100: =Y99+(bbb-aaa)/200 -> 0.455 | Z100: 0.43946 | AA100: 0.39575 | AB100: -0.04371 | AC100: 0.04371 | AD100: 0.0019 | AF100: =AF99+(bbbb-aaaa)/200 -> 0.455 | AG100: 0.43946 | AH100: 0.43973 | AI100: 0.00027 | AJ100: 0.00027 | AK100: 0.0000
D101: 0.47 | E101: 0.45289 | F101: 0.51000 | G101: 0.05711 | H101: 0.05711 | I101: 0.0033 | K101: 0.47 | L101: 0.45289 | M101: 0.60423 | N101: 0.15135 | O101: 0.15135 | P101: 0.0229 | R101: 0.47 | S101: 0.45289 | T101: 0.53530 | U101: 0.08242 | V101: 0.08242 | W101: 0.0068 | Y101: 0.47 | Z101: 0.45289 | AA101: 0.40580 | AB101: -0.04708 | AC101: 0.04708 | AD101: 0.0022 | AF101: 0.47 | AG101: 0.45289 | AH101: 0.44807 | AI101: -0.00481 | AJ101: 0.00481 | AK101: 0.0000
D102: 0.485 | E102: 0.46621 | F102: 0.52500 | G102: 0.05879 | H102: 0.05879 | I102: 0.0035 | K102: 0.485 | L102: 0.46621 | M102: 0.62701 | N102: 0.16080 | O102: 0.16080 | P102: 0.0259 | R102: 0.485 | S102: 0.46621 | T102: 0.55866 | U102: 0.09246 | V102: 0.09246 | W102: 0.0085 | Y102: 0.485 | Z102: 0.46621 | AA102: 0.41536 | AB102: -0.05085 | AC102: 0.05085 | AD102: 0.0026 | AF102: 0.485 | AG102: 0.46621 | AH102: 0.45556 | AI102: -0.01065 | AJ102: 0.01065 | AK102: 0.0001
D103: 0.5 | E103: 0.47943 | F103: 0.54000 | G103: 0.06057 | H103: 0.06057 | I103: 0.0037 | K103: 0.5 | L103: 0.47943 | M103: 0.65000 | N103: 0.17057 | O103: 0.17057 | P103: 0.0291 | R103: 0.5 | S103: 0.47943 | T103: 0.58250 | U103: 0.10307 | V103: 0.10307 | W103: 0.0106 | Y103: 0.5 | Z103: 0.47943 | AA103: 0.42438 | AB103: -0.05505 | AC103: 0.05505 | AD103: 0.0030 | AF103: 0.5 | AG103: 0.47943 | AH103: 0.46213 | AI103: -0.01730 | AJ103: 0.01730 | AK103: 0.0003
D104: 0.515 | E104: 0.49253 | F104: 0.55500 | G104: 0.06247 | H104: 0.06247 | I104: 0.0039 | K104: 0.515 | L104: 0.49253 | M104: 0.67321 | N104: 0.18067 | O104: 0.18067 | P104: 0.0326 | R104: 0.515 | S104: 0.49253 | T104: 0.60682 | U104: 0.11428 | V104: 0.11428 | W104: 0.0131 | Y104: 0.515 | Z104: 0.49253 | AA104: 0.43282 | AB104: -0.05971 | AC104: 0.05971 | AD104: 0.0036 | AF104: 0.515 | AG104: 0.49253 | AH104: 0.46773 | AI104: -0.02481 | AJ104: 0.02481 | AK104: 0.0006
D105: 0.53 | E105: 0.50553 | F105: 0.57000 | G105: 0.06447 | H105: 0.06447 | I105: 0.0042 | K105: 0.53 | L105: 0.50553 | M105: 0.69663 | N105: 0.19110 | O105: 0.19110 | P105: 0.0365 | R105: 0.53 | S105: 0.50553 | T105: 0.63162 | U105: 0.12609 | V105: 0.12609 | W105: 0.0159 | Y105: 0.53 | Z105: 0.50553 | AA105: 0.44066 | AB105: -0.06487 | AC105: 0.06487 | AD105: 0.0042 | AF105: 0.53 | AG105: 0.50553 | AH105: 0.47230 | AI105: -0.03323 | AJ105: 0.03323 | AK105: 0.0011
D106: 0.545 | E106: 0.51842 | F106: 0.58500 | G106: 0.06658 | H106: 0.06658 | I106: 0.0044 | K106: 0.545 | L106: 0.51842 | M106: 0.72027 | N106: 0.20185 | O106: 0.20185 | P106: 0.0407 | R106: 0.545 | S106: 0.51842 | T106: 0.65693 | U106: 0.13851 | V106: 0.13851 | W106: 0.0192 | Y106: 0.545 | Z106: 0.51842 | AA106: 0.44785 | AB106: -0.07057 | AC106: 0.07057 | AD106: 0.0050 | AF106: 0.545 | AG106: 0.51842 | AH106: 0.47580 | AI106: -0.04261 | AJ106: 0.04261 | AK106: 0.0018
D107: 0.56 | E107: 0.53119 | F107: 0.60000 | G107: 0.06881 | H107: 0.06881 | I107: 0.0047 | K107: 0.56 | L107: 0.53119 | M107: 0.74413 | N107: 0.21294 | O107: 0.21294 | P107: 0.0453 | R107: 0.56 | S107: 0.53119 | T107: 0.68273 | U107: 0.15155 | V107: 0.15155 | W107: 0.0230 | Y107: 0.56 | Z107: 0.53119 | AA107: 0.45436 | AB107: -0.07682 | AC107: 0.07682 | AD107: 0.0059 | AF107: 0.56 | AG107: 0.53119 | AH107: 0.47817 | AI107: -0.05302 | AJ107: 0.05302 | AK107: 0.0028
D108: 0.575 | E108: 0.54383 | F108: 0.61500 | G108: 0.07117 | H108: 0.07117 | I108: 0.0051 | K108: 0.575 | L108: 0.54383 | M108: 0.76820 | N108: 0.22437 | O108: 0.22437 | P108: 0.0503 | R108: 0.575 | S108: 0.54383 | T108: 0.70905 | U108: 0.16522 | V108: 0.16522 | W108: 0.0273 | Y108: 0.575 | Z108: 0.54383 | AA108: 0.46015 | AB108: -0.08368 | AC108: 0.08368 | AD108: 0.0070 | AF108: 0.575 | AG108: 0.54383 | AH108: 0.47934 | AI108: -0.06449 | AJ108: 0.06449 | AK108: 0.0042
D109: 0.59 | E109: 0.55636 | F109: 0.63000 | G109: 0.07364 | H109: 0.07364 | I109: 0.0054 | K109: 0.59 | L109: 0.55636 | M109: 0.79249 | N109: 0.23613 | O109: 0.23613 | P109: 0.0558 | R109: 0.59 | S109: 0.55636 | T109: 0.73589 | U109: 0.17953 | V109: 0.17953 | W109: 0.0322 | Y109: 0.59 | Z109: 0.55636 | AA109: 0.46518 | AB109: -0.09118 | AC109: 0.09118 | AD109: 0.0083 | AF109: 0.59 | AG109: 0.55636 | AH109: 0.47926 | AI109: -0.07710 | AJ109: 0.07710 | AK109: 0.0059
D110: 0.605 | E110: 0.56876 | F110: 0.64500 | G110: 0.07624 | H110: 0.07624 | I110: 0.0058 | K110: 0.605 | L110: 0.56876 | M110: 0.81699 | N110: 0.24823 | O110: 0.24823 | P110: 0.0616 | R110: 0.605 | S110: 0.56876 | T110: 0.76326 | U110: 0.19450 | V110: 0.19450 | W110: 0.0378 | Y110: 0.605 | Z110: 0.56876 | AA110: 0.46942 | AB110: -0.09935 | AC110: 0.09935 | AD110: 0.0099 | AF110: 0.605 | AG110: 0.56876 | AH110: 0.47787 | AI110: -0.09089 | AJ110: 0.09089 | AK110: 0.0083
D111: 0.62 | E111: 0.58104 | F111: 0.66000 | G111: 0.07896 | H111: 0.07896 | I111: 0.0062 | K111: 0.62 | L111: 0.58104 | M111: 0.84171 | N111: 0.26068 | O111: 0.26068 | P111: 0.0680 | R111: 0.62 | S111: 0.58104 | T111: 0.79116 | U111: 0.21013 | V111: 0.21013 | W111: 0.0442 | Y111: 0.62 | Z111: 0.58104 | AA111: 0.47281 | AB111: -0.10823 | AC111: 0.10823 | AD111: 0.0117 | AF111: 0.62 | AG111: 0.58104 | AH111: 0.47510 | AI111: -0.10594 | AJ111: 0.10594 | AK111: 0.0112
D112: 0.635 | E112: 0.59318 | F112: 0.67500 | G112: 0.08182 | H112: 0.08182 | I112: 0.0067 | K112: 0.635 | L112: 0.59318 | M112: 0.86665 | N112: 0.27347 | O112: 0.27347 | P112: 0.0748 | R112: 0.635 | S112: 0.59318 | T112: 0.81961 | U112: 0.22643 | V112: 0.22643 | W112: 0.0513 | Y112: 0.635 | Z112: 0.59318 | AA112: 0.47532 | AB112: -0.11786 | AC112: 0.11786 | AD112: 0.0139 | AF112: 0.635 | AG112: 0.59318 | AH112: 0.47090 | AI112: -0.12228 | AJ112: 0.12228 | AK112: 0.0150
D113: 0.65 | E113: 0.60519 | F113: 0.69000 | G113: 0.08481 | H113: 0.08481 | I113: 0.0072 | K113: 0.65 | L113: 0.60519 | M113: 0.89180 | N113: 0.28661 | O113: 0.28661 | P113: 0.0821 | R113: 0.65 | S113: 0.60519 | T113: 0.84861 | U113: 0.24342 | V113: 0.24342 | W113: 0.0593 | Y113: 0.65 | Z113: 0.60519 | AA113: 0.47690 | AB113: -0.12828 | AC113: 0.12828 | AD113: 0.0165 | AF113: 0.65 | AG113: 0.60519 | AH113: 0.46519 | AI113: -0.13999 | AJ113: 0.13999 | AK113: 0.0196
D114: 0.665 | E114: 0.61706 | F114: 0.70500 | G114: 0.08794 | H114: 0.08794 | I114: 0.0077 | K114: 0.665 | L114: 0.61706 | M114: 0.91717 | N114: 0.30011 | O114: 0.30011 | P114: 0.0901 | R114: 0.665 | S114: 0.61706 | T114: 0.87816 | U114: 0.26110 | V114: 0.26110 | W114: 0.0682 | Y114: 0.665 | Z114: 0.61706 | AA114: 0.47752 | AB114: -0.13954 | AC114: 0.13954 | AD114: 0.0195 | AF114: 0.665 | AG114: 0.61706 | AH114: 0.45793 | AI114: -0.15913 | AJ114: 0.15913 | AK114: 0.0253
D115: 0.68 | E115: 0.62879 | F115: 0.72000 | G115: 0.09121 | H115: 0.09121 | I115: 0.0083 | K115: 0.68 | L115: 0.62879 | M115: 0.94275 | N115: 0.31396 | O115: 0.31396 | P115: 0.0986 | R115: 0.68 | S115: 0.62879 | T115: 0.90828 | U115: 0.27949 | V115: 0.27949 | W115: 0.0781 | Y115: 0.68 | Z115: 0.62879 | AA115: 0.47714 | AB115: -0.15166 | AC115: 0.15166 | AD115: 0.0230 | AF115: 0.68 | AG115: 0.62879 | AH115: 0.44903 | AI115: -0.17976 | AJ115: 0.17976 | AK115: 0.0323
D116: 0.695 | E116: 0.64039 | F116: 0.73500 | G116: 0.09461 | H116: 0.09461 | I116: 0.0090 | K116: 0.695 | L116: 0.64039 | M116: 0.96855 | N116: 0.32817 | O116: 0.32817 | P116: 0.1077 | R116: 0.695 | S116: 0.64039 | T116: 0.93898 | U116: 0.29859 | V116: 0.29859 | W116: 0.0892 | Y116: 0.695 | Z116: 0.64039 | AA116: 0.47569 | AB116: -0.16469 | AC116: 0.16469 | AD116: 0.0271 | AF116: 0.695 | AG116: 0.64039 | AH116: 0.43844 | AI116: -0.20195 | AJ116: 0.20195 | AK116: 0.0408
D117: 0.71 | E117: 0.65183 | F117: 0.75000 | G117: 0.09817 | H117: 0.09817 | I117: 0.0096 | K117: 0.71 | L117: 0.65183 | M117: 0.99457 | N117: 0.34273 | O117: 0.34273 | P117: 0.1175 | R117: 0.71 | S117: 0.65183 | T117: 0.97026 | U117: 0.31842 | V117: 0.31842 | W117: 0.1014 | Y117: 0.71 | Z117: 0.65183 | AA117: 0.47315 | AB117: -0.17868 | AC117: 0.17868 | AD117: 0.0319 | AF117: 0.71 | AG117: 0.65183 | AH117: 0.42608 | AI117: -0.22575 | AJ117: 0.22575 | AK117: 0.0510
D118: 0.725 | E118: 0.66314 | F118: 0.76500 | G118: 0.10186 | H118: 0.10186 | I118: 0.0104 | K118: 0.725 | L118: 0.66314 | M118: 1.02080 | N118: 0.35766 | O118: 0.35766 | P118: 0.1279 | R118: 0.725 | S118: 0.66314 | T118: 1.00212 | U118: 0.33899 | V118: 0.33899 | W118: 0.1149 | Y118: 0.725 | Z118: 0.66314 | AA118: 0.46947 | AB118: -0.19367 | AC118: 0.19367 | AD118: 0.0375 | AF118: 0.725 | AG118: 0.66314 | AH118: 0.41190 | AI118: -0.25124 | AJ118: 0.25124 | AK118: 0.0631
D119: 0.74 | E119: 0.67429 | F119: 0.78000 | G119: 0.10571 | H119: 0.10571 | I119: 0.0112 | K119: 0.74 | L119: 0.67429 | M119: 1.04725 | N119: 0.37296 | O119: 0.37296 | P119: 0.1391 | R119: 0.74 | S119: 0.67429 | T119: 1.03459 | U119: 0.36030 | V119: 0.36030 | W119: 0.1298 | Y119: 0.74 | Z119: 0.67429 | AA119: 0.46460 | AB119: -0.20969 | AC119: 0.20969 | AD119: 0.0440 | AF119: 0.74 | AG119: 0.67429 | AH119: 0.39581 | AI119: -0.27848 | AJ119: 0.27848 | AK119: 0.0776
D120: 0.755 | E120: 0.68529 | F120: 0.79500 | G120: 0.10971 | H120: 0.10971 | I120: 0.0120 | K120: 0.755 | L120: 0.68529 | M120: 1.07391 | N120: 0.38862 | O120: 0.38862 | P120: 0.1510 | R120: 0.755 | S120: 0.68529 | T120: 1.06765 | U120: 0.38236 | V120: 0.38236 | W120: 0.1462 | Y120: 0.755 | Z120: 0.68529 | AA120: 0.45849 | AB120: -0.22680 | AC120: 0.22680 | AD120: 0.0514 | AF120: 0.755 | AG120: 0.68529 | AH120: 0.37774 | AI120: -0.30754 | AJ120: 0.30754 | AK120: 0.0946
D121: 0.77 | E121: 0.69614 | F121: 0.81000 | G121: 0.11386 | H121: 0.11386 | I121: 0.0130 | K121: 0.77 | L121: 0.69614 | M121: 1.10079 | N121: 0.40466 | O121: 0.40466 | P121: 0.1637 | R121: 0.77 | S121: 0.69614 | T121: 1.10133 | U121: 0.40520 | V121: 0.40520 | W121: 0.1642 | Y121: 0.77 | Z121: 0.69614 | AA121: 0.45109 | AB121: -0.24504 | AC121: 0.24504 | AD121: 0.0600 | AF121: 0.77 | AG121: 0.69614 | AH121: 0.35764 | AI121: -0.33850 | AJ121: 0.33850 | AK121: 0.1146
D122: 0.785 | E122: 0.70683 | F122: 0.82500 | G122: 0.11817 | H122: 0.11817 | I122: 0.0140 | K122: 0.785 | L122: 0.70683 | M122: 1.12789 | N122: 0.42106 | O122: 0.42106 | P122: 0.1773 | R122: 0.785 | S122: 0.70683 | T122: 1.13563 | U122: 0.42881 | V122: 0.42881 | W122: 0.1839 | Y122: 0.785 | Z122: 0.70683 | AA122: 0.44237 | AB122: -0.26446 | AC122: 0.26446 | AD122: 0.0699 | AF122: 0.785 | AG122: 0.70683 | AH122: 0.33541 | AI122: -0.37141 | AJ122: 0.37141 | AK122: 0.1379
D123: 0.8 | E123: 0.71736 | F123: 0.84000 | G123: 0.12264 | H123: 0.12264 | I123: 0.0150 | K123: 0.8 | L123: 0.71736 | M123: 1.15520 | N123: 0.43784 | O123: 0.43784 | P123: 0.1917 | R123: 0.8 | S123: 0.71736 | T123: 1.17056 | U123: 0.45320 | V123: 0.45320 | W123: 0.2054 | Y123: 0.8 | Z123: 0.71736 | AA123: 0.43226 | AB123: -0.28510 | AC123: 0.28510 | AD123: 0.0813 | AF123: 0.8 | AG123: 0.71736 | AH123: 0.31100 | AI123: -0.40636 | AJ123: 0.40636 | AK123: 0.1651
D124: 0.815 | E124: 0.72773 | F124: 0.85500 | G124: 0.12727 | H124: 0.12727 | I124: 0.0162 | K124: 0.815 | L124: 0.72773 | M124: 1.18273 | N124: 0.45500 | O124: 0.45500 | P124: 0.2070 | R124: 0.815 | S124: 0.72773 | T124: 1.20612 | U124: 0.47840 | V124: 0.47840 | W124: 0.2289 | Y124: 0.815 | Z124: 0.72773 | AA124: 0.42071 | AB124: -0.30701 | AC124: 0.30701 | AD124: 0.0943 | AF124: 0.815 | AG124: 0.72773 | AH124: 0.28432 | AI124: -0.44341 | AJ124: 0.44341 | AK124: 0.1966
D125: 0.83 | E125: 0.73793 | F125: 0.87000 | G125: 0.13207 | H125: 0.13207 | I125: 0.0174 | K125: 0.83 | L125: 0.73793 | M125: 1.21047 | N125: 0.47254 | O125: 0.47254 | P125: 0.2233 | R125: 0.83 | S125: 0.73793 | T125: 1.24233 | U125: 0.50440 | V125: 0.50440 | W125: 0.2544 | Y125: 0.83 | Z125: 0.73793 | AA125: 0.40769 | AB125: -0.33024 | AC125: 0.33024 | AD125: 0.1091 | AF125: 0.83 | AG125: 0.73793 | AH125: 0.25530 | AI125: -0.48264 | AJ125: 0.48264 | AK125: 0.2329
D126: 0.845 | E126: 0.74797 | F126: 0.88500 | G126: 0.13703 | H126: 0.13703 | I126: 0.0188 | K126: 0.845 | L126: 0.74797 | M126: 1.23843 | N126: 0.49046 | O126: 0.49046 | P126: 0.2406 | R126: 0.845 | S126: 0.74797 | T126: 1.27919 | U126: 0.53121 | V126: 0.53121 | W126: 0.2822 | Y126: 0.845 | Z126: 0.74797 | AA126: 0.39313 | AB126: -0.35484 | AC126: 0.35484 | AD126: 0.1259 | AF126: 0.845 | AG126: 0.74797 | AH126: 0.22386 | AI126: -0.52412 | AJ126: 0.52412 | AK126: 0.2747
D127: 0.86 | E127: 0.75784 | F127: 0.90000 | G127: 0.14216 | H127: 0.14216 | I127: 0.0202 | K127: 0.86 | L127: 0.75784 | M127: 1.26661 | N127: 0.50877 | O127: 0.50877 | P127: 0.2588 | R127: 0.86 | S127: 0.75784 | T127: 1.31670 | U127: 0.55886 | V127: 0.55886 | W127: 0.3123 | Y127: 0.86 | Z127: 0.75784 | AA127: 0.37699 | AB127: -0.38085 | AC127: 0.38085 | AD127: 0.1450 | AF127: 0.86 | AG127: 0.75784 | AH127: 0.18992 | AI127: -0.56792 | AJ127: 0.56792 | AK127: 0.3225
D128: 0.875 | E128: 0.76754 | F128: 0.91500 | G128: 0.14746 | H128: 0.14746 | I128: 0.0217 | K128: 0.875 | L128: 0.76754 | M128: 1.29500 | N128: 0.52746 | O128: 0.52746 | P128: 0.2782 | R128: 0.875 | S128: 0.76754 | T128: 1.35488 | U128: 0.58734 | V128: 0.58734 | W128: 0.3450 | Y128: 0.875 | Z128: 0.76754 | AA128: 0.35921 | AB128: -0.40833 | AC128: 0.40833 | AD128: 0.1667 | AF128: 0.875 | AG128: 0.76754 | AH128: 0.15340 | AI128: -0.61414 | AJ128: 0.61414 | AK128: 0.3772
D129: 0.89 | E129: 0.77707 | F129: 0.93000 | G129: 0.15293 | H129: 0.15293 | I129: 0.0234 | K129: 0.89 | L129: 0.77707 | M129: 1.32361 | N129: 0.54654 | O129: 0.54654 | P129: 0.2987 | R129: 0.89 | S129: 0.77707 | T129: 1.39374 | U129: 0.61667 | V129: 0.61667 | W129: 0.3803 | Y129: 0.89 | Z129: 0.77707 | AA129: 0.33974 | AB129: -0.43733 | AC129: 0.43733 | AD129: 0.1913 | AF129: 0.89 | AG129: 0.77707 | AH129: 0.11424 | AI129: -0.66284 | AJ129: 0.66284 | AK129: 0.4394
D130: 0.905 | E130: 0.78643 | F130: 0.94500 | G130: 0.15857 | H130: 0.15857 | I130: 0.0251 | K130: 0.905 | L130: 0.78643 | M130: 1.35243 | N130: 0.56601 | O130: 0.56601 | P130: 0.3204 | R130: 0.905 | S130: 0.78643 | T130: 1.43328 | U130: 0.64685 | V130: 0.64685 | W130: 0.4184 | Y130: 0.905 | Z130: 0.78643 | AA130: 0.31852 | AB130: -0.46790 | AC130: 0.46790 | AD130: 0.2189 | AF130: 0.905 | AG130: 0.78643 | AH130: 0.07233 | AI130: -0.71410 | AJ130: 0.71410 | AK130: 0.5099
D131: 0.92 | E131: 0.79560 | F131: =aa00+bb00*D131 -> 0.96000 | G131: 0.16440 | H131: 0.16440 | I131: 0.0270 | K131: 0.92 | L131: 0.79560 | M131: =a0+b0*D131+c0*D131^2 -> 1.38147 | N131: 0.58587 | O131: 0.58587 | P131: 0.3432 | R131: 0.92 | S131: 0.79560 | T131: =a00+b00*R131+c00*R131^2+d00*D131^3 -> 1.47350 | U131: 0.67790 | V131: 0.67790 | W131: 0.4595 | Y131: 0.92 | Z131: 0.79560 | AA131: =a000+b000*Y131+c000*Y131^2+d000*R131^3+e000*R131^4 -> 0.29550 | AB131: -0.50010 | AC131: 0.50010 | AD131: 0.2501 | AF131: 0.92 | AG131: 0.79560 | AH131: =a0000+b0000*AF131+c0000*AF131^2+d0000*AF131^3+e0000*AF131^4+f0000*AF131^5 -> 0.02761 | AI131: -0.76800 | AJ131: 0.76800 | AK131: 0.5898
D132: =D131+(b-a)/200 -> 0.935 | E132: =SIN(D132) -> 0.80460 | F132: 0.97500 | G132: =F132-E132 -> 0.17040 | H132: =ABS(G132) -> 0.17040 | I132: =G132^2 -> 0.0290 | K132: =K131+(b-a)/200 -> 0.935 | L132: =SIN(K132) -> 0.80460 | M132: 1.41073 | N132: =M132-L132 -> 0.60613 | O132: =ABS(N132) -> 0.60613 | P132: =N132^2 -> 0.3674 | R132: =R131+(bb-aa)/200 -> 0.935 | S132: =SIN(R132) -> 0.80460 | T132: 1.51442 | U132: =T132-S132 -> 0.70983 | V132: =ABS(U132) -> 0.70983 | W132: =U132^2 -> 0.5039 | Y132: =Y131+(bbb-aaa)/200 -> 0.935 | Z132: =SIN(Y132) -> 0.80460 | AA132: 0.27063 | AB132: =AA132-Z132 -> -0.53397 | AC132: =ABS(AB132) -> 0.53397 | AD132: =AB132^2 -> 0.2851 | AF132: =AF131+(bbbb-aaaa)/200 -> 0.935 | AG132: =SIN(AF132) -> 0.80460 | AH132: -0.02002 | AI132: =AH132-AG132 -> -0.82462 | AJ132: =ABS(AI132) -> 0.82462 | AK132: =AI132^2 -> 0.6800
D133: 0.95 | E133: 0.81342 | F133: 0.99000 | G133: 0.17658 | H133: 0.17658 | I133: 0.0312 | K133: 0.95 | L133: 0.81342 | M133: 1.44020 | N133: 0.62678 | O133: 0.62678 | P133: 0.3929 | R133: 0.95 | S133: 0.81342 | T133: 1.55605 | U133: 0.74264 | V133: 0.74264 | W133: 0.5515 | Y133: 0.95 | Z133: 0.81342 | AA133: 0.24384 | AB133: -0.56958 | AC133: 0.56958 | AD133: 0.3244 | AF133: 0.95 | AG133: 0.81342 | AH133: -0.07063 | AI133: -0.88405 | AJ133: 0.88405 | AK133: 0.7815
D134: 0.965 | E134: 0.82205 | F134: 1.00500 | G134: 0.18295 | H134: 0.18295 | I134: 0.0335 | K134: 0.965 | L134: 0.82205 | M134: 1.46989 | N134: 0.64784 | O134: 0.64784 | P134: 0.4197 | R134: 0.965 | S134: 0.82205 | T134: 1.59839 | U134: 0.77634 | V134: 0.77634 | W134: 0.6027 | Y134: 0.965 | Z134: 0.82205 | AA134: 0.21508 | AB134: -0.60697 | AC134: 0.60697 | AD134: 0.3684 | AF134: 0.965 | AG134: 0.82205 | AH134: -0.12431 | AI134: -0.94636 | AJ134: 0.94636 | AK134: 0.8956
D135: 0.98 | E135: 0.83050 | F135: 1.02000 | G135: 0.18950 | H135: 0.18950 | I135: 0.0359 | K135: 0.98 | L135: 0.83050 | M135: 1.49979 | N135: 0.66929 | O135: 0.66929 | P135: 0.4480 | R135: 0.98 | S135: 0.83050 | T135: 1.64145 | U135: 0.81096 | V135: 0.81096 | W135: 0.6576 | Y135: 0.98 | Z135: 0.83050 | AA135: 0.18430 | AB135: -0.64620 | AC135: 0.64620 | AD135: 0.4176 | AF135: 0.98 | AG135: 0.83050 | AH135: -0.18115 | AI135: -1.01165 | AJ135: 1.01165 | AK135: 1.0234
D136: 0.995 | E136: 0.83876 | F136: 1.03500 | G136: 0.19624 | H136: 0.19624 | I136: 0.0385 | K136: 0.995 | L136: 0.83876 | M136: 1.52991 | N136: 0.69115 | O136: 0.69115 | P136: 0.4777 | R136: 0.995 | S136: 0.83876 | T136: 1.68524 | U136: 0.84648 | V136: 0.84648 | W136: 0.7165 | Y136: 0.995 | Z136: 0.83876 | AA136: 0.15143 | AB136: -0.68733 | AC136: 0.68733 | AD136: 0.4724 | AF136: 0.995 | AG136: 0.83876 | AH136: -0.24124 | AI136: -1.08000 | AJ136: 1.08000 | AK136: 1.1664
D137: 1.01 | E137: 0.84683 | F137: 1.05000 | G137: 0.20317 | H137: 0.20317 | I137: 0.0413 | K137: 1.01 | L137: 0.84683 | M137: 1.56025 | N137: 0.71342 | O137: 0.71342 | P137: 0.5090 | R137: 1.01 | S137: 0.84683 | T137: 1.72976 | U137: 0.88293 | V137: 0.88293 | W137: 0.7796 | Y137: 1.01 | Z137: 0.84683 | AA137: 0.11642 | AB137: -0.73042 | AC137: 0.73042 | AD137: 0.5335 | AF137: 1.01 | AG137: 0.84683 | AH137: -0.30465 | AI137: -1.15148 | AJ137: 1.15148 | AK137: 1.3259
D138: 1.025 | E138: 0.85471 | F138: 1.06500 | G138: 0.21029 | H138: 0.21029 | I138: 0.0442 | K138: 1.025 | L138: 0.85471 | M138: 1.59080 | N138: 0.73609 | O138: 0.73609 | P138: 0.5418 | R138: 1.025 | S138: 0.85471 | T138: 1.77503 | U138: 0.92032 | V138: 0.92032 | W138: 0.8470 | Y138: 1.025 | Z138: 0.85471 | AA138: 0.07920 | AB138: -0.77552 | AC138: 0.77552 | AD138: 0.6014 | AF138: 1.025 | AG138: 0.85471 | AH138: -0.37149 | AI138: -1.22620 | AJ138: 1.22620 | AK138: 1.5036
D139: 1.04 | E139: 0.86240 | F139: 1.08000 | G139: 0.21760 | H139: 0.21760 | I139: 0.0473 | K139: 1.04 | L139: 0.86240 | M139: 1.62157 | N139: 0.75916 | O139: 0.75916 | P139: 0.5763 | R139: 1.04 | S139: 0.86240 | T139: 1.82105 | U139: 0.95864 | V139: 0.95864 | W139: 0.9190 | Y139: 1.04 | Z139: 0.86240 | AA139: 0.03971 | AB139: -0.82269 | AC139: 0.82269 | AD139: 0.6768 | AF139: 1.04 | AG139: 0.86240 | AH139: -0.44184 | AI139: -1.30424 | AJ139: 1.30424 | AK139: 1.7010
D140: 1.055 | E140: 0.86990 | F140: 1.09500 | G140: 0.22510 | H140: 0.22510 | I140: 0.0507 | K140: 1.055 | L140: 0.86990 | M140: 1.65255 | N140: 0.78265 | O140: 0.78265 | P140: 0.6125 | R140: 1.055 | S140: 0.86990 | T140: 1.86782 | U140: 0.99792 | V140: 0.99792 | W140: 0.9959 | Y140: 1.055 | Z140: 0.86990 | AA140: -0.00210 | AB140: -0.87200 | AC140: 0.87200 | AD140: 0.7604 | AF140: 1.055 | AG140: 0.86990 | AH140: -0.51578 | AI140: -1.38568 | AJ140: 1.38568 | AK140: 1.9201
D141: 1.07 | E141: 0.87720 | F141: 1.11000 | G141: 0.23280 | H141: 0.23280 | I141: 0.0542 | K141: 1.07 | L141: 0.87720 | M141: 1.68375 | N141: 0.80655 | O141: 0.80655 | P141: 0.6505 | R141: 1.07 | S141: 0.87720 | T141: 1.91537 | U141: 1.03817 | V141: 1.03817 | W141: 1.0778 | Y141: 1.07 | Z141: 0.87720 | AA141: -0.04630 | AB141: -0.92350 | AC141: 0.92350 | AD141: 0.8528 | AF141: 1.07 | AG141: 0.87720 | AH141: -0.59343 | AI141: -1.47063 | AJ141: 1.47063 | AK141: 2.1627
D142: 1.085 | E142: 0.88430 | F142: 1.12500 | G142: 0.24070 | H142: 0.24070 | I142: 0.0579 | K142: 1.085 | L142: 0.88430 | M142: 1.71517 | N142: 0.83086 | O142: 0.83086 | P142: 0.6903 | R142: 1.085 | S142: 0.88430 | T142: 1.96368 | U142: 1.07938 | V142: 1.07938 | W142: 1.1651 | Y142: 1.085 | Z142: 0.88430 | AA142: -0.09294 | AB142: -0.97725 | AC142: 0.97725 | AD142: 0.9550 | AF142: 1.085 | AG142: 0.88430 | AH142: -0.67486 | AI142: -1.55916 | AJ142: 1.55916 | AK142: 2.4310
D143: 1.1 | E143: 0.89121 | F143: 1.14000 | G143: 0.24879 | H143: 0.24879 | I143: 0.0619 | K143: 1.1 | L143: 0.89121 | M143: 1.74680 | N143: 0.85559 | O143: 0.85559 | P143: 0.7320 | R143: 1.1 | S143: 0.89121 | T143: 2.01278 | U143: 1.12157 | V143: 1.12157 | W143: 1.2579 | Y143: 1.1 | Z143: 0.89121 | AA143: -0.14211 | AB143: -1.03332 | AC143: 1.03332 | AD143: 1.0677 | AF143: 1.1 | AG143: 0.89121 | AH143: -0.76017 | AI143: -1.65138 | AJ143: 1.65138 | AK143: 2.7271
D144: 1.115 | E144: 0.89791 | F144: 1.15500 | G144: 0.25709 | H144: 0.25709 | I144: 0.0661 | K144: 1.115 | L144: 0.89791 | M144: 1.77865 | N144: 0.88074 | O144: 0.88074 | P144: 0.7757 | R144: 1.115 | S144: 0.89791 | T144: 2.06267 | U144: 1.16476 | V144: 1.16476 | W144: 1.3567 | Y144: 1.115 | Z144: 0.89791 | AA144: -0.19385 | AB144: -1.09176 | AC144: 1.09176 | AD144: 1.1919 | AF144: 1.115 | AG144: 0.89791 | AH144: -0.84946 | AI144: -1.74737 | AJ144: 1.74737 | AK144: 3.0533
D145: 1.13 | E145: 0.90441 | F145: 1.17000 | G145: 0.26559 | H145: 0.26559 | I145: 0.0705 | K145: 1.13 | L145: 0.90441 | M145: 1.81071 | N145: 0.90630 | O145: 0.90630 | P145: 0.8214 | R145: 1.13 | S145: 0.90441 | T145: 2.11335 | U145: 1.20894 | V145: 1.20894 | W145: 1.4615 | Y145: 1.13 | Z145: 0.90441 | AA145: -0.24824 | AB145: -1.15265 | AC145: 1.15265 | AD145: 1.3286 | AF145: 1.13 | AG145: 0.90441 | AH145: -0.94282 | AI145: -1.84723 | AJ145: 1.84723 | AK145: 3.4123
D146: 1.145 | E146: 0.91071 | F146: 1.18500 | G146: 0.27429 | H146: 0.27429 | I146: 0.0752 | K146: 1.145 | L146: 0.91071 | M146: 1.84299 | N146: 0.93228 | O146: 0.93228 | P146: 0.8691 | R146: 1.145 | S146: 0.91071 | T146: 2.16484 | U146: 1.25413 | V146: 1.25413 | W146: 1.5728 | Y146: 1.145 | Z146: 0.91071 | AA146: -0.30533 | AB146: -1.21604 | AC146: 1.21604 | AD146: 1.4788 | AF146: 1.145 | AG146: 0.91071 | AH146: -1.04035 | AI146: -1.95106 | AJ146: 1.95106 | AK146: 3.8066
D147: 1.16 | E147: 0.91680 | F147: 1.20000 | G147: 0.28320 | H147: 0.28320 | I147: 0.0802 | K147: 1.16 | L147: 0.91680 | M147: 1.87549 | N147: 0.95868 | O147: 0.95868 | P147: 0.9191 | R147: 1.16 | S147: 0.91680 | T147: 2.21714 | U147: 1.30034 | V147: 1.30034 | W147: 1.6909 | Y147: 1.16 | Z147: 0.91680 | AA147: -0.36521 | AB147: -1.28201 | AC147: 1.28201 | AD147: 1.6435 | AF147: 1.16 | AG147: 0.91680 | AH147: -1.14215 | AI147: -2.05895 | AJ147: 2.05895 | AK147: 4.2393
D148: 1.175 | E148: 0.92269 | F148: 1.21500 | G148: 0.29231 | H148: 0.29231 | I148: 0.0854 | K148: 1.175 | L148: 0.92269 | M148: 1.90820 | N148: 0.98551 | O148: 0.98551 | P148: 0.9712 | R148: 1.175 | S148: 0.92269 | T148: 2.27026 | U148: 1.34757 | V148: 1.34757 | W148: 1.8159 | Y148: 1.175 | Z148: 0.92269 | AA148: -0.42792 | AB148: -1.35061 | AC148: 1.35061 | AD148: 1.8241 | AF148: 1.175 | AG148: 0.92269 | AH148: -1.24831 | AI148: -2.17100 | AJ148: 2.17100 | AK148: 4.7132
D149: 1.19 | E149: 0.92837 | F149: 1.23000 | G149: 0.30163 | H149: 0.30163 | I149: 0.0910 | K149: 1.19 | L149: 0.92837 | M149: 1.94113 | N149: 1.01276 | O149: 1.01276 | P149: 1.0257 | R149: 1.19 | S149: 0.92837 | T149: 2.32421 | U149: 1.39584 | V149: 1.39584 | W149: 1.9484 | Y149: 1.19 | Z149: 0.92837 | AA149: -0.49354 | AB149: -1.42191 | AC149: 1.42191 | AD149: 2.0218 | AF149: 1.19 | AG149: 0.92837 | AH149: -1.35894 | AI149: -2.28731 | AJ149: 2.28731 | AK149: 5.2318
D150: 1.205 | E150: 0.93384 | F150: 1.24500 | G150: 0.31116 | H150: 0.31116 | I150: 0.0968 | K150: 1.205 | L150: 0.93384 | M150: 1.97427 | N150: 1.04043 | O150: 1.04043 | P150: 1.0825 | R150: 1.205 | S150: 0.93384 | T150: 2.37899 | U150: 1.44516 | V150: 1.44516 | W150: 2.0885 | Y150: 1.205 | Z150: 0.93384 | AA150: -0.56215 | AB150: -1.49599 | AC150: 1.49599 | AD150: 2.2380 | AF150: 1.205 | AG150: 0.93384 | AH150: -1.47414 | AI150: -2.40797 | AJ150: 2.40797 | AK150: 5.7983
D151: 1.22 | E151: 0.93910 | F151: 1.26000 | G151: 0.32090 | H151: 0.32090 | I151: 0.1030 | K151: 1.22 | L151: 0.93910 | M151: 2.00763 | N151: 1.06853 | O151: 1.06853 | P151: 1.1418 | R151: 1.22 | S151: 0.93910 | T151: 2.43462 | U151: 1.49552 | V151: 1.49552 | W151: 2.2366 | Y151: 1.22 | Z151: 0.93910 | AA151: -0.63380 | AB151: -1.57290 | AC151: 1.57290 | AD151: 2.4740 | AF151: 1.22 | AG151: 0.93910 | AH151: -1.59400 | AI151: -2.53310 | AJ151: 2.53310 | AK151: 6.4166
D152: 1.235 | E152: 0.94415 | F152: 1.27500 | G152: 0.33085 | H152: 0.33085 | I152: 0.1095 | K152: 1.235 | L152: 0.94415 | M152: 2.04121 | N152: 1.09706 | O152: 1.09706 | P152: 1.2035 | R152: 1.235 | S152: 0.94415 | T152: 2.49110 | U152: 1.54695 | V152: 1.54695 | W152: 2.3931 | Y152: 1.235 | Z152: 0.94415 | AA152: -0.70857 | AB152: -1.65271 | AC152: 1.65271 | AD152: 2.7315 | AF152: 1.235 | AG152: 0.94415 | AH152: -1.71863 | AI152: -2.66278 | AJ152: 2.66278 | AK152: 7.0904
D153: 1.25 | E153: 0.94898 | F153: 1.29000 | G153: 0.34102 | H153: 0.34102 | I153: 0.1163 | K153: 1.25 | L153: 0.94898 | M153: 2.07500 | N153: 1.12602 | O153: 1.12602 | P153: 1.2679 | R153: 1.25 | S153: 0.94898 | T153: 2.54844 | U153: 1.59945 | V153: 1.59945 | W153: 2.5582 | Y153: 1.25 | Z153: 0.94898 | AA153: -0.78652 | AB153: -1.73551 | AC153: 1.73551 | AD153: 3.0120 | AF153: 1.25 | AG153: 0.94898 | AH153: -1.84814 | AI153: -2.79713 | AJ153: 2.79713 | AK153: 7.8239
D154: 1.265 | E154: 0.95361 | F154: 1.30500 | G154: 0.35139 | H154: 0.35139 | I154: 0.1235 | K154: 1.265 | L154: 0.95361 | M154: 2.10901 | N154: 1.15540 | O154: 1.15540 | P154: 1.3350 | R154: 1.265 | S154: 0.95361 | T154: 2.60664 | U154: 1.65303 | V154: 1.65303 | W154: 2.7325 | Y154: 1.265 | Z154: 0.95361 | AA154: -0.86774 | AB154: -1.82135 | AC154: 1.82135 | AD154: 3.3173 | AF154: 1.265 | AG154: 0.95361 | AH154: -1.98263 | AI154: -2.93624 | AJ154: 2.93624 | AK154: 8.6215
D155: 1.28 | E155: 0.95802 | F155: 1.32000 | G155: 0.36198 | H155: 0.36198 | I155: 0.1310 | K155: 1.28 | L155: 0.95802 | M155: 2.14323 | N155: 1.18522 | O155: 1.18522 | P155: 1.4047 | R155: 1.28 | S155: 0.95802 | T155: 2.66572 | U155: 1.70770 | V155: 1.70770 | W155: 2.9162 | Y155: 1.28 | Z155: 0.95802 | AA155: -0.95229 | AB155: -1.91030 | AC155: 1.91030 | AD155: 3.6493 | AF155: 1.28 | AG155: 0.95802 | AH155: -2.12221 | AI155: -3.08023 | AJ155: 3.08023 | AK155: 9.4878
D156: 1.295 | E156: 0.96221 | F156: 1.33500 | G156: 0.37279 | H156: 0.37279 | I156: 0.1390 | K156: 1.295 | L156: 0.96221 | M156: 2.17767 | N156: 1.21546 | O156: 1.21546 | P156: 1.4774 | R156: 1.295 | S156: 0.96221 | T156: 2.72568 | U156: 1.76347 | V156: 1.76347 | W156: 3.1098 | Y156: 1.295 | Z156: 0.96221 | AA156: -1.04024 | AB156: -2.00245 | AC156: 2.00245 | AD156: 4.0098 | AF156: 1.295 | AG156: 0.96221 | AH156: -2.26698 | AI156: -3.22918 | AJ156: 3.22918 | AK156: 10.4276
D157: 1.31 | E157: 0.96618 | F157: 1.35000 | G157: 0.38382 | H157: 0.38382 | I157: 0.1473 | K157: 1.31 | L157: 0.96618 | M157: 2.21233 | N157: 1.24614 | O157: 1.24614 | P157: 1.5529 | R157: 1.31 | S157: 0.96618 | T157: 2.78652 | U157: 1.82034 | V157: 1.82034 | W157: 3.3136 | Y157: 1.31 | Z157: 0.96618 | AA157: -1.13167 | AB157: -2.09786 | AC157: 2.09786 | AD157: 4.4010 | AF157: 1.31 | AG157: 0.96618 | AH157: -2.41704 | AI157: -3.38323 | AJ157: 3.38323 | AK157: 11.4462
D158: 1.325 | E158: 0.96994 | F158: 1.36500 | G158: 0.39506 | H158: 0.39506 | I158: 0.1561 | K158: 1.325 | L158: 0.96994 | M158: 2.24720 | N158: 1.27726 | O158: 1.27726 | P158: 1.6314 | R158: 1.325 | S158: 0.96994 | T158: 2.84827 | U158: 1.87833 | V158: 1.87833 | W158: 3.5281 | Y158: 1.325 | Z158: 0.96994 | AA158: -1.22666 | AB158: -2.19660 | AC158: 2.19660 | AD158: 4.8251 | AF158: 1.325 | AG158: 0.96994 | AH158: -2.57252 | AI158: -3.54246 | AJ158: 3.54246 | AK158: 12.5490
D159: 1.34 | E159: 0.97348 | F159: 1.38000 | G159: 0.40652 | H159: 0.40652 | I159: 0.1653 | K159: 1.34 | L159: 0.97348 | M159: 2.28229 | N159: 1.30880 | O159: 1.30880 | P159: 1.7130 | R159: 1.34 | S159: 0.97348 | T159: 2.91092 | U159: 1.93743 | V159: 1.93743 | W159: 3.7537 | Y159: 1.34 | Z159: 0.97348 | AA159: -1.32527 | AB159: -2.29875 | AC159: 2.29875 | AD159: 5.2843 | AF159: 1.34 | AG159: 0.97348 | AH159: -2.73351 | AI159: -3.70699 | AJ159: 3.70699 | AK159: 13.7418
D160: 1.355 | E160: 0.97681 | F160: 1.39500 | G160: 0.41819 | H160: 0.41819 | I160: 0.1749 | K160: 1.355 | L160: 0.97681 | M160: 2.31759 | N160: 1.34079 | O160: 1.34079 | P160: 1.7977 | R160: 1.355 | S160: 0.97681 | T160: 2.97448 | U160: 1.99768 | V160: 1.99768 | W160: 3.9907 | Y160: 1.355 | Z160: 0.97681 | AA160: -1.42758 | AB160: -2.40439 | AC160: 2.40439 | AD160: 5.7811 | AF160: 1.355 | AG160: 0.97681 | AH160: -2.90013 | AI160: -3.87693 | AJ160: 3.87693 | AK160: 15.0306
D161: 1.37 | E161: 0.97991 | F161: 1.41000 | G161: 0.43009 | H161: 0.43009 | I161: 0.1850 | K161: 1.37 | L161: 0.97991 | M161: 2.35311 | N161: 1.37320 | O161: 1.37320 | P161: 1.8857 | R161: 1.37 | S161: 0.97991 | T161: 3.03896 | U161: 2.05906 | V161: 2.05906 | W161: 4.2397 | Y161: 1.37 | Z161: 0.97991 | AA161: -1.53367 | AB161: -2.51358 | AC161: 2.51358 | AD161: 6.3181 | AF161: 1.37 | AG161: 0.97991 | AH161: -3.07248 | AI161: -4.05239 | AJ161: 4.05239 | AK161: 16.4219
D162: 1.385 | E162: 0.98279 | F162: 1.42500 | G162: 0.44221 | H162: 0.44221 | I162: 0.1956 | K162: 1.385 | L162: 0.98279 | M162: 2.38885 | N162: 1.40606 | O162: 1.40606 | P162: 1.9770 | R162: 1.385 | S162: 0.98279 | T162: 3.10437 | U162: 2.12158 | V162: 2.12158 | W162: 4.5011 | Y162: 1.385 | Z162: 0.98279 | AA162: -1.64362 | AB162: -2.62641 | AC162: 2.62641 | AD162: 6.8980 | AF162: 1.385 | AG162: 0.98279 | AH162: -3.25069 | AI162: -4.23348 | AJ162: 4.23348 | AK162: 17.9224
D163: 1.4 | E163: 0.98545 | F163: 1.44000 | G163: 0.45455 | H163: 0.45455 | I163: 0.2066 | K163: 1.4 | L163: 0.98545 | M163: 2.42480 | N163: 1.43935 | O163: 1.43935 | P163: 2.0717 | R163: 1.4 | S163: 0.98545 | T163: 3.17072 | U163: 2.18527 | V163: 2.18527 | W163: 4.7754 | Y163: 1.4 | Z163: 0.98545 | AA163: -1.75750 | AB163: -2.74295 | AC163: 2.74295 | AD163: 7.5238 | AF163: 1.4 | AG163: 0.98545 | AH163: -3.43487 | AI163: -4.42032 | AJ163: 4.42032 | AK163: 19.5392
D164: =D163+(b-a)/200 -> 1.415 | E164: 0.98789 | F164: 1.45500 | G164: 0.46711 | H164: 0.46711 | I164: 0.2182 | K164: 1.415 | L164: 0.98789 | M164: 2.46097 | N164: 1.47308 | O164: 1.47308 | P164: 2.1700 | R164: =R163+(bb-aa)/200 -> 1.415 | S164: 0.98789 | T164: 3.23801 | U164: 2.25012 | V164: 2.25012 | W164: 5.0630 | Y164: =Y163+(bbb-aaa)/200 -> 1.415 | Z164: 0.98789 | AA164: -1.87540 | AB164: -2.86329 | AC164: 2.86329 | AD164: 8.1984 | AF164: =AF163+(bbbb-aaaa)/200 -> 1.415 | AG164: 0.98789 | AH164: -3.62512 | AI164: -4.61300 | AJ164: 4.61300 | AK164: 21.2798
D165: 1.43 | E165: 0.99010 | F165: 1.47000 | G165: 0.47990 | H165: 0.47990 | I165: 0.2303 | K165: 1.43 | L165: 0.99010 | M165: 2.49735 | N165: 1.50725 | O165: 1.50725 | P165: 2.2718 | R165: 1.43 | S165: 0.99010 | T165: 3.30625 | U165: 2.31614 | V165: 2.31614 | W165: 5.3645 | Y165: 1.43 | Z165: 0.99010 | AA165: -1.99739 | AB165: -2.98749 | AC165: 2.98749 | AD165: 8.9251 | AF165: 1.43 | AG165: 0.99010 | AH165: -3.82156 | AI165: -4.81167 | AJ165: 4.81167 | AK165: 23.1521
D166: 1.445 | E166: 0.99210 | F166: 1.48500 | G166: 0.49290 | H166: 0.49290 | I166: 0.2430 | K166: 1.445 | L166: 0.99210 | M166: 2.53395 | N166: 1.54185 | O166: 1.54185 | P166: 2.3773 | R166: 1.445 | S166: 0.99210 | T166: 3.37545 | U166: 2.38335 | V166: 2.38335 | W166: 5.6804 | Y166: 1.445 | Z166: 0.99210 | AA166: -2.12354 | AB166: -3.11564 | AC166: 3.11564 | AD166: 9.7072 | AF166: 1.445 | AG166: 0.99210 | AH166: -4.02432 | AI166: -5.01641 | AJ166: 5.01641 | AK166: 25.1644
D167: 1.46 | E167: 0.99387 | F167: 1.50000 | G167: 0.50613 | H167: 0.50613 | I167: 0.2562 | K167: 1.46 | L167: 0.99387 | M167: 2.57077 | N167: 1.57690 | O167: 1.57690 | P167: 2.4866 | R167: 1.46 | S167: 0.99387 | T167: 3.44561 | U167: 2.45174 | V167: 2.45174 | W167: 6.0110 | Y167: 1.46 | Z167: 0.99387 | AA167: -2.25395 | AB167: -3.24782 | AC167: 3.24782 | AD167: 10.5484 | AF167: 1.46 | AG167: 0.99387 | AH167: -4.23350 | AI167: -5.22736 | AJ167: 5.22736 | AK167: 27.3253
D168: 1.475 | E168: 0.99542 | F168: 1.51500 | G168: 0.51958 | H168: 0.51958 | I168: 0.2700 | K168: 1.475 | L168: 0.99542 | M168: 2.60780 | N168: 1.61238 | O168: 1.61238 | P168: 2.5998 | R168: 1.475 | S168: 0.99542 | T168: 3.51675 | U168: 2.52134 | V168: 2.52134 | W168: 6.3571 | Y168: 1.475 | Z168: 0.99542 | AA168: -2.38870 | AB168: -3.38411 | AC168: 3.38411 | AD168: 11.4522 | AF168: 1.475 | AG168: 0.99542 | AH168: -4.44922 | AI168: -5.44463 | AJ168: 5.44463 | AK168: 29.6440
D169: 1.49 | E169: 0.99674 | F169: 1.53000 | G169: 0.53326 | H169: 0.53326 | I169: 0.2844 | K169: 1.49 | L169: 0.99674 | M169: 2.64505 | N169: 1.64831 | O169: 1.64831 | P169: 2.7169 | R169: 1.49 | S169: 0.99674 | T169: 3.58887 | U169: 2.59213 | V169: 2.59213 | W169: 6.7192 | Y169: 1.49 | Z169: 0.99674 | AA169: -2.52786 | AB169: -3.52460 | AC169: 3.52460 | AD169: 12.4228 | AF169: 1.49 | AG169: 0.99674 | AH169: -4.67161 | AI169: -5.66834 | AJ169: 5.66834 | AK169: 32.1301
D170: 1.505 | E170: 0.99784 | F170: 1.54500 | G170: 0.54716 | H170: 0.54716 | I170: 0.2994 | K170: 1.505 | L170: 0.99784 | M170: 2.68251 | N170: 1.68468 | O170: 1.68468 | P170: 2.8381 | R170: 1.505 | S170: 0.99784 | T170: 3.66198 | U170: 2.66414 | V170: 2.66414 | W170: 7.0977 | Y170: 1.505 | Z170: 0.99784 | AA170: -2.67152 | AB170: -3.66935 | AC170: 3.66935 | AD170: 13.4641 | AF170: 1.505 | AG170: 0.99784 | AH170: -4.90078 | AI170: -5.89861 | AJ170: 5.89861 | AK170: 34.7936
D171: 1.52 | E171: 0.99871 | F171: 1.56000 | G171: 0.56129 | H171: 0.56129 | I171: 0.3150 | K171: 1.52 | L171: 0.99871 | M171: 2.72019 | N171: 1.72148 | O171: 1.72148 | P171: 2.9635 | R171: 1.52 | S171: 0.99871 | T171: 3.73609 | U171: 2.73738 | V171: 2.73738 | W171: 7.4932 | Y171: 1.52 | Z171: 0.99871 | AA171: -2.81976 | AB171: -3.81847 | AC171: 3.81847 | AD171: 14.5807 | AF171: 1.52 | AG171: 0.99871 | AH171: -5.13685 | AI171: -6.13556 | AJ171: 6.13556 | AK171: 37.6451
D172: 1.535 | E172: 0.99936 | F172: 1.57500 | G172: 0.57564 | H172: 0.57564 | I172: 0.3314 | K172: 1.535 | L172: 0.99936 | M172: 2.75809 | N172: 1.75873 | O172: 1.75873 | P172: 3.0931 | R172: 1.535 | S172: 0.99936 | T172: 3.81120 | U172: 2.81184 | V172: 2.81184 | W172: 7.9064 | Y172: 1.535 | Z172: 0.99936 | AA172: -2.97266 | AB172: -3.97202 | AC172: 3.97202 | AD172: 15.7770 | AF172: 1.535 | AG172: 0.99936 | AH172: -5.37994 | AI172: -6.37930 | AJ172: 6.37930 | AK172: 40.6955
D173: 1.55 | E173: 0.99978 | F173: 1.59000 | G173: 0.59022 | H173: 0.59022 | I173: 0.3484 | K173: 1.55 | L173: 0.99978 | M173: 2.79620 | N173: 1.79642 | O173: 1.79642 | P173: 3.2271 | R173: 1.55 | S173: 0.99978 | T173: 3.88732 | U173: 2.88754 | V173: 2.88754 | W173: 8.3379 | Y173: 1.55 | Z173: 0.99978 | AA173: -3.13032 | AB173: -4.13010 | AC173: 4.13010 | AD173: 17.0578 | AF173: 1.55 | AG173: 0.99978 | AH173: -5.63019 | AI173: -6.62997 | AJ173: 6.62997 | AK173: 43.9565
D174: 1.565 | E174: 0.99998 | F174: 1.60500 | G174: 0.60502 | H174: 0.60502 | I174: 0.3660 | K174: 1.565 | L174: 0.99998 | M174: 2.83453 | N174: 1.83454 | O174: 1.83454 | P174: 3.3656 | R174: 1.565 | S174: 0.99998 | T174: 3.96447 | U174: 2.96448 | V174: 2.96448 | W174: 8.7882 | Y174: 1.565 | Z174: 0.99998 | AA174: -3.29281 | AB174: -4.29280 | AC174: 4.29280 | AD174: 18.4281 | AF174: 1.565 | AG174: 0.99998 | AH174: -5.88770 | AI174: -6.88768 | AJ174: 6.88768 | AK174: 47.4402
D175: 1.58 | E175: 0.99996 | F175: 1.62000 | G175: 0.62004 | H175: 0.62004 | I175: 0.3845 | K175: 1.58 | L175: 0.99996 | M175: 2.87307 | N175: 1.87311 | O175: 1.87311 | P175: 3.5086 | R175: 1.58 | S175: 0.99996 | T175: 4.04264 | U175: 3.04268 | V175: 3.04268 | W175: 9.2579 | Y175: 1.58 | Z175: 0.99996 | AA175: -3.46023 | AB175: -4.46019 | AC175: 4.46019 | AD175: 19.8933 | AF175: 1.58 | AG175: 0.99996 | AH175: -6.15261 | AI175: -7.15256 | AJ175: 7.15256 | AK175: 51.1592
D176: 1.595 | E176: 0.99971 | F176: 1.63500 | G176: 0.63529 | H176: 0.63529 | I176: 0.4036 | K176: 1.595 | L176: 0.99971 | M176: 2.91183 | N176: 1.91212 | O176: 1.91212 | P176: 3.6562 | R176: 1.595 | S176: 0.99971 | T176: 4.12185 | U176: 3.12214 | V176: 3.12214 | W176: 9.7478 | Y176: 1.595 | Z176: 0.99971 | AA176: -3.63266 | AB176: -4.63237 | AC176: 4.63237 | AD176: 21.4588 | AF176: 1.595 | AG176: 0.99971 | AH176: -6.42503 | AI176: -7.42474 | AJ176: 7.42474 | AK176: 55.1268
D177: 1.61 | E177: 0.99923 | F177: 1.65000 | G177: 0.65077 | H177: 0.65077 | I177: 0.4235 | K177: 1.61 | L177: 0.99923 | M177: 2.95081 | N177: 1.95158 | O177: 1.95158 | P177: 3.8087 | R177: 1.61 | S177: 0.99923 | T177: 4.20210 | U177: 3.20287 | V177: 3.20287 | W177: 10.2583 | Y177: 1.61 | Z177: 0.99923 | AA177: -3.81019 | AB177: -4.80942 | AC177: 4.80942 | AD177: 23.1305 | AF177: 1.61 | AG177: 0.99923 | AH177: -6.70510 | AI177: -7.70434 | AJ177: 7.70434 | AK177: 59.3568
D178: 1.625 | E178: 0.99853 | F178: 1.66500 | G178: 0.66647 | H178: 0.66647 | I178: 0.4442 | K178: 1.625 | L178: 0.99853 | M178: 2.99000 | N178: 1.99147 | O178: 1.99147 | P178: 3.9659 | R178: 1.625 | S178: 0.99853 | T178: 4.28340 | U178: 3.28487 | V178: 3.28487 | W178: 10.7904 | Y178: 1.625 | Z178: 0.99853 | AA178: -3.99290 | AB178: -4.99143 | AC178: 4.99143 | AD178: 24.9144 | AF178: 1.625 | AG178: 0.99853 | AH178: -6.99295 | AI178: -7.99148 | AJ178: 7.99148 | AK178: 63.8637
D179: 1.64 | E179: 0.99761 | F179: 1.68000 | G179: 0.68239 | H179: 0.68239 | I179: 0.4657 | K179: 1.64 | L179: 0.99761 | M179: 3.02941 | N179: 2.03180 | O179: 2.03180 | P179: 4.1282 | R179: 1.64 | S179: 0.99761 | T179: 4.36576 | U179: 3.36815 | V179: 3.36815 | W179: 11.3445 | Y179: 1.64 | Z179: 0.99761 | AA179: -4.18089 | AB179: -5.17849 | AC179: 5.17849 | AD179: 26.8168 | AF179: 1.64 | AG179: 0.99761 | AH179: -7.28869 | AI179: -8.28630 | AJ179: 8.28630 | AK179: 68.6627
D180: 1.655 | E180: 0.99646 | F180: 1.69500 | G180: 0.69854 | H180: 0.69854 | I180: 0.4880 | K180: 1.655 | L180: 0.99646 | M180: 3.06903 | N180: 2.07258 | O180: 2.07258 | P180: 4.2956 | R180: 1.655 | S180: 0.99646 | T180: 4.44919 | U180: 3.45273 | V180: 3.45273 | W180: 11.9213 | Y180: 1.655 | Z180: 0.99646 | AA180: -4.37424 | AB180: -5.37070 | AC180: 5.37070 | AD180: 28.8444 | AF180: 1.655 | AG180: 0.99646 | AH180: -7.59246 | AI180: -8.58892 | AJ180: 8.58892 | AK180: 73.7695
D181: 1.67 | E181: 0.99508 | F181: 1.71000 | G181: 0.71492 | H181: 0.71492 | I181: 0.5111 | K181: 1.67 | L181: 0.99508 | M181: 3.10887 | N181: 2.11379 | O181: 2.11379 | P181: 4.4681 | R181: 1.67 | S181: 0.99508 | T181: 4.53369 | U181: 3.53860 | V181: 3.53860 | W181: 12.5217 | Y181: 1.67 | Z181: 0.99508 | AA181: -4.57305 | AB181: -5.56813 | AC181: 5.56813 | AD181: 31.0041 | AF181: 1.67 | AG181: 0.99508 | AH181: -7.90439 | AI181: -8.89947 | AJ181: 8.89947 | AK181: 79.2007
D182: 1.685 | E182: 0.99349 | F182: 1.72500 | G182: 0.73151 | H182: 0.73151 | I182: 0.5351 | K182: 1.685 | L182: 0.99349 | M182: 3.14893 | N182: 2.15544 | O182: 2.15544 | P182: 4.6459 | R182: 1.685 | S182: 0.99349 | T182: 4.61927 | U182: 3.62578 | V182: 3.62578 | W182: 13.1463 | Y182: 1.685 | Z182: 0.99349 | AA182: -4.77741 | AB182: -5.77090 | AC182: 5.77090 | AD182: 33.3032 | AF182: 1.685 | AG182: 0.99349 | AH182: -8.22461 | AI182: -9.21809 | AJ182: 9.21809 | AK182: 84.9733
D183: 1.7 | E183: 0.99166 | F183: 1.74000 | G183: 0.74834 | H183: 0.74834 | I183: 0.5600 | K183: 1.7 | L183: 0.99166 | M183: 3.18920 | N183: 2.19754 | O183: 2.19754 | P183: 4.8292 | R183: 1.7 | S183: 0.99166 | T183: 4.70594 | U183: 3.71428 | V183: 3.71428 | W183: 13.7958 | Y183: 1.7 | Z183: 0.99166 | AA183: -4.98741 | AB183: -5.97907 | AC183: 5.97907 | AD183: 35.7493 | AF183: 1.7 | AG183: 0.99166 | AH183: -8.55325 | AI183: -9.54491 | AJ183: 9.54491 | AK183: 91.1053
D184: 1.715 | E184: 0.98962 | F184: 1.75500 | G184: 0.76538 | H184: 0.76538 | I184: 0.5858 | K184: 1.715 | L184: 0.98962 | M184: 3.22969 | N184: 2.24007 | O184: 2.24007 | P184: 5.0179 | R184: 1.715 | S184: 0.98962 | T184: 4.79371 | U184: 3.80409 | V184: 3.80409 | W184: 14.4711 | Y184: 1.715 | Z184: 0.98962 | AA184: -5.20314 | AB184: -6.19276 | AC184: 6.19276 | AD184: 38.3503 | AF184: 1.715 | AG184: 0.98962 | AH184: -8.89043 | AI184: -9.88006 | AJ184: 9.88006 | AK184: 97.6155
D185: 1.73 | E185: 0.98735 | F185: 1.77000 | G185: 0.78265 | H185: 0.78265 | I185: 0.6125 | K185: 1.73 | L185: 0.98735 | M185: 3.27039 | N185: 2.28304 | O185: 2.28304 | P185: 5.2123 | R185: 1.73 | S185: 0.98735 | T185: 4.88258 | U185: 3.89523 | V185: 3.89523 | W185: 15.1728 | Y185: 1.73 | Z185: 0.98735 | AA185: -5.42470 | AB185: -6.41205 | AC185: 6.41205 | AD185: 41.1144 | AF185: 1.73 | AG185: 0.98735 | AH185: -9.23631 | AI185: -10.22366 | AJ185: 10.22366 | AK185: 104.5233
D186: 1.745 | E186: 0.98486 | F186: 1.78500 | G186: 0.80014 | H186: 0.80014 | I186: 0.6402 | K186: 1.745 | L186: 0.98486 | M186: 3.31131 | N186: 2.32645 | O186: 2.32645 | P186: 5.4124 | R186: 1.745 | S186: 0.98486 | T186: 4.97257 | U186: 3.98770 | V186: 3.98770 | W186: 15.9018 | Y186: 1.745 | Z186: 0.98486 | AA186: -5.65218 | AB186: -6.63704 | AC186: 6.63704 | AD186: 44.0503 | AF186: 1.745 | AG186: 0.98486 | AH186: -9.59100 | AI186: -10.57587 | AJ186: 10.57587 | AK186: 111.8489
D187: 1.76 | E187: 0.98215 | F187: 1.80000 | G187: 0.81785 | H187: 0.81785 | I187: 0.6689 | K187: 1.76 | L187: 0.98215 | M187: 3.35245 | N187: 2.37029 | O187: 2.37029 | P187: 5.6183 | R187: 1.76 | S187: 0.98215 | T187: 5.06367 | U187: 4.08152 | V187: 4.08152 | W187: 16.6588 | Y187: 1.76 | Z187: 0.98215 | AA187: -5.88567 | AB187: -6.86783 | AC187: 6.86783 | AD187: 47.1670 | AF187: 1.76 | AG187: 0.98215 | AH187: -9.95465 | AI187: -10.93680 | AJ187: 10.93680 | AK187: 119.6136
D188: 1.775 | E188: 0.97922 | F188: 1.81500 | G188: 0.83578 | H188: 0.83578 | I188: 0.6985 | K188: 1.775 | L188: 0.97922 | M188: 3.39380 | N188: 2.41458 | O188: 2.41458 | P188: 5.8302 | R188: 1.775 | S188: 0.97922 | T188: 5.15591 | U188: 4.17669 | V188: 4.17669 | W188: 17.4447 | Y188: 1.775 | Z188: 0.97922 | AA188: -6.12528 | AB188: -7.10450 | AC188: 7.10450 | AD188: 50.4739 | AF188: 1.775 | AG188: 0.97922 | AH188: -10.32738 | AI188: -11.30660 | AJ188: 11.30660 | AK188: 127.8393
D189: 1.79 | E189: 0.97607 | F189: 1.83000 | G189: 0.85393 | H189: 0.85393 | I189: 0.7292 | K189: 1.79 | L189: 0.97607 | M189: 3.43537 | N189: 2.45930 | O189: 2.45930 | P189: 6.0481 | R189: 1.79 | S189: 0.97607 | T189: 5.24928 | U189: 4.27321 | V189: 4.27321 | W189: 18.2603 | Y189: 1.79 | Z189: 0.97607 | AA189: -6.37109 | AB189: -7.34716 | AC189: 7.34716 | AD189: 53.9808 | AF189: 1.79 | AG189: 0.97607 | AH189: -10.70934 | AI189: -11.68541 | AJ189: 11.68541 | AK189: 136.5489
D190: 1.805 | E190: 0.97270 | F190: 1.84500 | G190: 0.87230 | H190: 0.87230 | I190: 0.7609 | K190: 1.805 | L190: 0.97270 | M190: 3.47715 | N190: 2.50445 | O190: 2.50445 | P190: 6.2723 | R190: 1.805 | S190: 0.97270 | T190: 5.34379 | U190: 4.37109 | V190: 4.37109 | W190: 19.1064 | Y190: 1.805 | Z190: 0.97270 | AA190: -6.62321 | AB190: -7.59591 | AC190: 7.59591 | AD190: 57.6978 | AF190: 1.805 | AG190: 0.97270 | AH190: -11.10067 | AI190: -12.07337 | AJ190: 12.07337 | AK190: 145.7662
D191: 1.82 | E191: 0.96911 | F191: 1.86000 | G191: 0.89089 | H191: 0.89089 | I191: 0.7937 | K191: 1.82 | L191: 0.96911 | M191: 3.51915 | N191: 2.55004 | O191: 2.55004 | P191: 6.5027 | R191: 1.82 | S191: 0.96911 | T191: 5.43946 | U191: 4.47035 | V191: 4.47035 | W191: 19.9840 | Y191: 1.82 | Z191: 0.96911 | AA191: -6.88173 | AB191: -7.85084 | AC191: 7.85084 | AD191: 61.6357 | AF191: 1.82 | AG191: 0.96911 | AH191: -11.50149 | AI191: -12.47060 | AJ191: 12.47060 | AK191: 155.5159
D192: 1.835 | E192: 0.96530 | F192: 1.87500 | G192: 0.90970 | H192: 0.90970 | I192: 0.8276 | K192: 1.835 | L192: 0.96530 | M192: 3.56137 | N192: 2.59607 | O192: 2.59607 | P192: 6.7396 | R192: 1.835 | S192: 0.96530 | T192: 5.53628 | U192: 4.57098 | V192: 4.57098 | W192: 20.8938 | Y192: 1.835 | Z192: 0.96530 | AA192: -7.14675 | AB192: -8.11205 | AC192: 8.11205 | AD192: 65.8054 | AF192: 1.835 | AG192: 0.96530 | AH192: -11.91196 | AI192: -12.87726 | AJ192: 12.87726 | AK192: 165.8238
D193: 1.85 | E193: 0.96128 | F193: 1.89000 | G193: 0.92872 | H193: 0.92872 | I193: 0.8625 | K193: 1.85 | L193: 0.96128 | M193: 3.60380 | N193: 2.64252 | O193: 2.64252 | P193: 6.9829 | R193: 1.85 | S193: 0.96128 | T193: 5.63427 | U193: 4.67299 | V193: 4.67299 | W193: 21.8369 | Y193: 1.85 | Z193: 0.96128 | AA193: -7.41838 | AB193: -8.37965 | AC193: 8.37965 | AD193: 70.2186 | AF193: 1.85 | AG193: 0.96128 | AH193: -12.33221 | AI193: -13.29348 | AJ193: 13.29348 | AK193: 176.7166
D194: 1.865 | E194: 0.95703 | F194: 1.90500 | G194: 0.94797 | H194: 0.94797 | I194: 0.8986 | K194: 1.865 | L194: 0.95703 | M194: 3.64645 | N194: 2.68941 | O194: 2.68941 | P194: 7.2330 | R194: 1.865 | S194: 0.95703 | T194: 5.73343 | U194: 4.77640 | V194: 4.77640 | W194: 22.8140 | Y194: 1.865 | Z194: 0.95703 | AA194: -7.69670 | AB194: -8.65373 | AC194: 8.65373 | AD194: 74.8871 | AF194: 1.865 | AG194: 0.95703 | AH194: -12.76237 | AI194: -13.71941 | AJ194: 13.71941 | AK194: 188.2221
D195: 1.88 | E195: 0.95258 | F195: =aa00+bb00*D195 -> 1.92000 | G195: 0.96742 | H195: 0.96742 | I195: 0.9359 | K195: 1.88 | L195: 0.95258 | M195: =a0+b0*D195+c0*D195^2 -> 3.68931 | N195: 2.73674 | O195: 2.73674 | P195: 7.4897 | R195: 1.88 | S195: 0.95258 | T195: =a00+b00*R195+c00*R195^2+d00*D195^3 -> 5.83378 | U195: 4.88120 | V195: 4.88120 | W195: 23.8261 | Y195: 1.88 | Z195: 0.95258 | AA195: =a000+b000*Y195+c000*Y195^2+d000*R195^3+e000*R195^4 -> -7.98183 | AB195: -8.93440 | AC195: 8.93440 | AD195: 79.8236 | AF195: 1.88 | AG195: 0.95258 | AH195: =a0000+b0000*AF195+c0000*AF195^2+d0000*AF195^3+e0000*AF195^4+f0000*AF195^5 -> -13.20260 | AI195: -14.15518 | AJ195: 14.15518 | AK195: 200.3691
D196: =D195+(b-a)/200 -> 1.895 | E196: =SIN(D196) -> 0.94790 | F196: 1.93500 | G196: =F196-E196 -> 0.98710 | H196: =ABS(G196) -> 0.98710 | I196: =G196^2 -> 0.9744 | K196: =K195+(b-a)/200 -> 1.895 | L196: =SIN(K196) -> 0.94790 | M196: 3.73239 | N196: =M196-L196 -> 2.78449 | O196: =ABS(N196) -> 2.78449 | P196: =N196^2 -> 7.7534 | R196: =R195+(bb-aa)/200 -> 1.895 | S196: =SIN(R196) -> 0.94790 | T196: 5.93531 | U196: =T196-S196 -> 4.98740 | V196: =ABS(U196) -> 4.98740 | W196: =U196^2 -> 24.8742 | Y196: =Y195+(bbb-aaa)/200 -> 1.895 | Z196: =SIN(Y196) -> 0.94790 | AA196: -8.27385 | AB196: =AA196-Z196 -> -9.22176 | AC196: =ABS(AB196) -> 9.22176 | AD196: =AB196^2 -> 85.0408 | AF196: =AF195+(bbbb-aaaa)/200 -> 1.895 | AG196: =SIN(AF196) -> 0.94790 | AH196: -13.65304 | AI196: =AH196-AG196 -> -14.60094 | AJ196: =ABS(AI196) -> 14.60094 | AK196: =AI196^2 -> 213.1876
D197: 1.91 | E197: 0.94302 | F197: 1.95000 | G197: 1.00698 | H197: 1.00698 | I197: 1.0140 | K197: 1.91 | L197: 0.94302 | M197: 3.77569 | N197: 2.83267 | O197: 2.83267 | P197: 8.0240 | R197: 1.91 | S197: 0.94302 | T197: 6.03804 | U197: 5.09502 | V197: 5.09502 | W197: 25.9592 | Y197: 1.91 | Z197: 0.94302 | AA197: -8.57289 | AB197: -9.51591 | AC197: 9.51591 | AD197: 90.5525 | AF197: 1.91 | AG197: 0.94302 | AH197: -14.11383 | AI197: -15.05685 | AJ197: 15.05685 | AK197: 226.7086
D198: 1.925 | E198: 0.93792 | F198: 1.96500 | G198: 1.02708 | H198: 1.02708 | I198: 1.0549 | K198: 1.925 | L198: 0.93792 | M198: 3.81920 | N198: 2.88128 | O198: 2.88128 | P198: 8.3018 | R198: 1.925 | S198: 0.93792 | T198: 6.14198 | U198: 5.20405 | V198: 5.20405 | W198: 27.0822 | Y198: 1.925 | Z198: 0.93792 | AA198: -8.87903 | AB198: -9.81695 | AC198: 9.81695 | AD198: 96.3725 | AF198: 1.925 | AG198: 0.93792 | AH198: -14.58510 | AI198: -15.52303 | AJ198: 15.52303 | AK198: 240.9644
D199: 1.94 | E199: 0.93262 | F199: 1.98000 | G199: 1.04738 | H199: 1.04738 | I199: 1.0970 | K199: 1.94 | L199: 0.93262 | M199: 3.86293 | N199: 2.93031 | O199: 2.93031 | P199: 8.5867 | R199: 1.94 | S199: 0.93262 | T199: 6.24713 | U199: 5.31451 | V199: 5.31451 | W199: 28.2440 | Y199: 1.94 | Z199: 0.93262 | AA199: -9.19238 | AB199: -10.12500 | AC199: 10.12500 | AD199: 102.5155 | AF199: 1.94 | AG199: 0.93262 | AH199: -15.06702 | AI199: -15.99964 | AJ199: 15.99964 | AK199: 255.9883
D200: 1.955 | E200: 0.92710 | F200: 1.99500 | G200: 1.06790 | H200: 1.06790 | I200: 1.1404 | K200: 1.955 | L200: 0.92710 | M200: 3.90687 | N200: 2.97977 | O200: 2.97977 | P200: 8.8791 | R200: 1.955 | S200: 0.92710 | T200: 6.35349 | U200: 5.42640 | V200: 5.42640 | W200: 29.4458 | Y200: 1.955 | Z200: 0.92710 | AA200: -9.51305 | AB200: -10.44015 | AC200: 10.44015 | AD200: 108.9966 | AF200: 1.955 | AG200: 0.92710 | AH200: -15.55972 | AI200: -16.48682 | AJ200: 16.48682 | AK200: 271.8152
... 4 more rows
